Workbook

Sheet Grant and Concessional Loan
F1: TRUE
B2: Time Line | G2: 0 | H2: 1 | I2: 2 | J2: 3 | K2: 4 | L2: 5 | M2: 6 | N2: 7 | O2: 8 | P2: 9 | Q2: 10 | R2: 11 | S2: 12 | T2: 13 | U2: 14 | V2: 15 | W2: 16 | X2: 17 | Y2: 18 | Z2: 19 | AA2: 20 | AB2: 21 | AC2: 22 | AD2: 23 | AE2: 24 | AF2: 25 | AG2: 26 | AH2: 27 | AI2: 28 | AJ2: 29 | AK2: 30 | AL2: 31 | AM2: 32 | AN2: 33 | AO2: 34 | AP2: 35 | AQ2: 36 | AR2: 37 | AS2: 38 | AT2: 39 | AU2: 40
A4: Assumptions for Concessional Loan and Grant
C5: Grant | E5: 1000 | F5: FALSE
H6: Target Equity IRR for Investor | L6: 0.2
C7: Concessional Loan | H7: Earned Return | L7: =E70 -> 0.2
D8: Amount | E8: 1278.405274 | F8: TRUE | H8: NPV of Equity Cash Flows at Target | L8: =E74 -> -6.273500238e-12
D9: Interest rate | E9: 0.0075 | H9: Initial Operating Cash Flow | L9: 1591.564915
D10: Grace period | E10: 0
D11: Up-Front and Commitment Fee | E11: 0.005
D12: Tenor | E12: 25
C14: Regular Loan
D15: Amount | E15: 3000
D16: Interest rate | E16: 0.08
D17: Grace period
D18: Up-Front Fee and Commitment Fee | E18: 0.02
D19: Tenor | E19: 10
A21: Operating Assumptions and Analysis
B22: Project Life | E22: 25 | H22: =H2<=$E$22 -> TRUE | I22: TRUE | J22: TRUE | K22: TRUE | L22: TRUE | M22: TRUE | N22: TRUE | O22: TRUE | P22: TRUE | Q22: TRUE | R22: TRUE | S22: TRUE | T22: TRUE | U22: TRUE | V22: TRUE | W22: TRUE | X22: TRUE | Y22: TRUE | Z22: TRUE | AA22: TRUE | AB22: TRUE | AC22: TRUE | AD22: TRUE | AE22: TRUE | AF22: TRUE | AG22: FALSE | AH22: FALSE | AI22: FALSE | AJ22: FALSE | AK22: FALSE | AL22: FALSE | AM22: FALSE | AN22: FALSE | AO22: FALSE | AP22: FALSE | AQ22: FALSE | AR22: FALSE | AS22: FALSE | AT22: FALSE | AU22: FALSE
B23: Capex | E23: 10000 | G23: =E23 -> 10000
B24: EBITDA | H24: =L9 -> 1591.564915 | I24: =H24*I22 -> 1591.564915 | J24: =I24*J22 -> 1591.564915 | K24: 1591.564915 | L24: 1591.564915 | M24: 1591.564915 | N24: 1591.564915 | O24: 1591.564915 | P24: 1591.564915 | Q24: 1591.564915 | R24: 1591.564915 | S24: 1591.564915 | T24: 1591.564915 | U24: 1591.564915 | V24: 1591.564915 | W24: 1591.564915 | X24: 1591.564915 | Y24: 1591.564915 | Z24: 1591.564915 | AA24: 1591.564915 | AB24: 1591.564915 | AC24: 1591.564915 | AD24: 1591.564915 | AE24: 1591.564915 | AF24: 1591.564915 | AG24: 0 | AH24: 0 | AI24: 0 | AJ24: 0 | AK24: 0 | AL24: 0 | AM24: 0 | AN24: 0 | AO24: 0 | AP24: 0 | AQ24: 0 | AR24: 0 | AS24: 0 | AT24: 0 | AU24: 0
B25: Net cashflow | G25: =E24-E23 -> -10000 | H25: =H24-H23 -> 1591.564915 | I25: 1591.564915 | J25: 1591.564915 | K25: 1591.564915 | L25: 1591.564915 | M25: 1591.564915 | N25: 1591.564915 | O25: 1591.564915 | P25: 1591.564915 | Q25: 1591.564915 | R25: 1591.564915 | S25: 1591.564915 | T25: 1591.564915 | U25: 1591.564915 | V25: 1591.564915 | W25: 1591.564915 | X25: 1591.564915 | Y25: 1591.564915 | Z25: 1591.564915 | AA25: 1591.564915 | AB25: 1591.564915 | AC25: 1591.564915 | AD25: 1591.564915 | AE25: 1591.564915 | AF25: 1591.564915 | AG25: 0 | AH25: 0 | AI25: 0 | AJ25: 0 | AK25: 0 | AL25: 0 | AM25: 0 | AN25: 0 | AO25: 0 | AP25: 0 | AQ25: 0 | AR25: 0 | AS25: 0 | AT25: 0 | AU25: 0
B26: Project IRR | E26: =IRR(25:25) -> 0.1547997994
A28: Project Finance Model
B29: Uses of Funds
C30: Capital Expenditures | G30: =G23 -> 10000
C31: Debt Fees | G31: =G50 -> 60
D32: Total | G32: =G30+G31 -> 10060
B34: Sources
C35: Grant | G35: =E5*F5 -> 0
C36: Concessional loan | G36: =E8*F8 -> 1278.405274
C37: Market based loan | G37: =E15 -> 3000
C38: Investor Equity | G38: =E23-G35-G36-G37 -> 5721.594726
D39: Total | G39: =SUM(G35:G38) -> 10000
B41: Debt Schedule
C42: Regular Loan
D43: Repayment Switch | E43: =1+E17 -> 1 | F43: =E19 -> 10 | G43: =F43-E43+1 -> 10 | H43: =AND(H2>=$E$43,H2<=$F$43) -> TRUE | I43: TRUE | J43: TRUE | K43: TRUE | L43: TRUE | M43: TRUE | N43: TRUE | O43: TRUE | P43: TRUE | Q43: TRUE | R43: FALSE | S43: FALSE | T43: FALSE | U43: FALSE | V43: FALSE | W43: FALSE | X43: FALSE | Y43: FALSE | Z43: FALSE | AA43: FALSE | AB43: FALSE | AC43: FALSE | AD43: FALSE | AE43: FALSE | AF43: FALSE | AG43: FALSE | AH43: FALSE | AI43: FALSE | AJ43: FALSE | AK43: FALSE | AL43: FALSE | AM43: FALSE | AN43: FALSE | AO43: FALSE | AP43: FALSE | AQ43: FALSE | AR43: FALSE | AS43: FALSE | AT43: FALSE | AU43: FALSE
D44: Total Payment | F44: =E16 -> 0.08 | G44: =PMT(F44,G43,-G37) -> 447.0884661 | H44: =$G$44*H43 -> 447.0884661 | I44: =$G$44*I43 -> 447.0884661 | J44: 447.0884661 | K44: 447.0884661 | L44: 447.0884661 | M44: 447.0884661 | N44: 447.0884661 | O44: 447.0884661 | P44: 447.0884661 | Q44: 447.0884661 | R44: 0 | S44: 0 | T44: 0 | U44: 0 | V44: 0 | W44: 0 | X44: 0 | Y44: 0 | Z44: 0 | AA44: 0 | AB44: 0 | AC44: 0 | AD44: 0 | AE44: 0 | AF44: 0 | AG44: 0 | AH44: 0 | AI44: 0 | AJ44: 0 | AK44: 0 | AL44: 0 | AM44: 0 | AN44: 0 | AO44: 0 | AP44: 0 | AQ44: 0 | AR44: 0 | AS44: 0 | AT44: 0 | AU44: 0
D46: Opening Balance | H46: =G48 -> 3000 | I46: =H48 -> 2792.911534 | J46: 2569.255991 | K46: 2327.708004 | L46: 2066.836178 | M46: 1785.094606 | N46: 1480.813708 | O46: 1152.190339 | P46: 797.2771 | Q46: 413.9708019 | R46: 1.364242053e-12 | S46: 1.473381417e-12 | T46: 1.59125193e-12 | U46: 1.718552085e-12 | V46: 1.856036251e-12 | W46: 2.004519152e-12 | X46: 2.164880684e-12 | Y46: 2.338071138e-12 | Z46: 2.525116829e-12 | AA46: 2.727126176e-12 | AB46: 2.94529627e-12 | AC46: 3.180919971e-12 | AD46: 3.435393569e-12 | AE46: 3.710225055e-12 | AF46: 4.007043059e-12 | AG46: 4.327606504e-12 | AH46: 4.673815024e-12 | AI46: 5.047720226e-12 | AJ46: 5.451537844e-12 | AK46: 5.887660872e-12 | AL46: 6.358673741e-12 | AM46: 6.867367641e-12 | AN46: 7.416757052e-12 | AO46: 8.010097616e-12 | AP46: 8.650905425e-12 | AQ46: 9.342977859e-12 | AR46: 1.009041609e-11 | AS46: 1.089764938e-11 | AT46: 1.176946133e-11 | AU46: 1.271101823e-11
D47: Less: Repayment | H47: =H44-H49 -> 207.0884661 | I47: =I44-I49 -> 223.6555434 | J47: 241.5479868 | K47: 260.8718258 | L47: 281.7415719 | M47: 304.2808976 | N47: 328.6233694 | O47: 354.913239 | P47: 383.3062981 | Q47: 413.9708019 | R47: -1.091393642e-13 | S47: -1.178705133e-13 | T47: -1.273001544e-13 | U47: -1.374841668e-13 | V47: -1.484829001e-13 | W47: -1.603615321e-13 | X47: -1.731904547e-13 | Y47: -1.870456911e-13 | Z47: -2.020093464e-13 | AA47: -2.181700941e-13 | AB47: -2.356237016e-13 | AC47: -2.544735977e-13 | AD47: -2.748314855e-13 | AE47: -2.968180044e-13 | AF47: -3.205634447e-13 | AG47: -3.462085203e-13 | AH47: -3.739052019e-13 | AI47: -4.038176181e-13 | AJ47: -4.361230275e-13 | AK47: -4.710128697e-13 | AL47: -5.086938993e-13 | AM47: -5.493894112e-13 | AN47: -5.933405641e-13 | AO47: -6.408078093e-13 | AP47: -6.92072434e-13 | AQ47: -7.474382287e-13 | AR47: -8.07233287e-13 | AS47: -8.7181195e-13 | AT47: -9.41556906e-13 | AU47: -1.016881458e-12
D48: Closing Balance | G48: =G37 -> 3000 | H48: =H46-H47 -> 2792.911534 | I48: =I46-I47 -> 2569.255991 | J48: 2327.708004 | K48: 2066.836178 | L48: 1785.094606 | M48: 1480.813708 | N48: 1152.190339 | O48: 797.2771 | P48: 413.9708019 | Q48: 1.364242053e-12 | R48: 1.473381417e-12 | S48: 1.59125193e-12 | T48: 1.718552085e-12 | U48: 1.856036251e-12 | V48: 2.004519152e-12 | W48: 2.164880684e-12 | X48: 2.338071138e-12 | Y48: 2.525116829e-12 | Z48: 2.727126176e-12 | AA48: 2.94529627e-12 | AB48: 3.180919971e-12 | AC48: 3.435393569e-12 | AD48: 3.710225055e-12 | AE48: 4.007043059e-12 | AF48: 4.327606504e-12 | AG48: 4.673815024e-12 | AH48: 5.047720226e-12 | AI48: 5.451537844e-12 | AJ48: 5.887660872e-12 | AK48: 6.358673741e-12 | AL48: 6.867367641e-12 | AM48: 7.416757052e-12 | AN48: 8.010097616e-12 | AO48: 8.650905425e-12 | AP48: 9.342977859e-12 | AQ48: 1.009041609e-11 | AR48: 1.089764938e-11 | AS48: 1.176946133e-11 | AT48: 1.271101823e-11 | AU48: 1.372789969e-11
D49: Interest | F49: =F44 -> 0.08 | H49: =H46*$F$49 -> 240 | I49: =I46*$F$49 -> 223.4329227 | J49: 205.5404792 | K49: 186.2166403 | L49: 165.3468942 | M49: 142.8075685 | N49: 118.4650967 | O49: 92.17522712 | P49: 63.782168 | Q49: 33.11766415 | R49: 1.091393642e-13 | S49: 1.178705133e-13 | T49: 1.273001544e-13 | U49: 1.374841668e-13 | V49: 1.484829001e-13 | W49: 1.603615321e-13 | X49: 1.731904547e-13 | Y49: 1.870456911e-13 | Z49: 2.020093464e-13 | AA49: 2.181700941e-13 | AB49: 2.356237016e-13 | AC49: 2.544735977e-13 | AD49: 2.748314855e-13 | AE49: 2.968180044e-13 | AF49: 3.205634447e-13 | AG49: 3.462085203e-13 | AH49: 3.739052019e-13 | AI49: 4.038176181e-13 | AJ49: 4.361230275e-13 | AK49: 4.710128697e-13 | AL49: 5.086938993e-13 | AM49: 5.493894112e-13 | AN49: 5.933405641e-13 | AO49: 6.408078093e-13 | AP49: 6.92072434e-13 | AQ49: 7.474382287e-13 | AR49: 8.07233287e-13 | AS49: 8.7181195e-13 | AT49: 9.41556906e-13 | AU49: 1.016881458e-12
D50: Fees | F50: =E18 -> 0.02 | G50: =F50*G48 -> 60
C52: GCF Concessional Loan
D53: Repayment Switch | E53: =E10+1 -> 1 | F53: =E12 -> 25 | G53: =F53-E53+1 -> 25 | H53: =AND(H2>=$E$53,H2<=$F$53) -> TRUE | I53: TRUE | J53: TRUE | K53: TRUE | L53: TRUE | M53: TRUE | N53: TRUE | O53: TRUE | P53: TRUE | Q53: TRUE | R53: TRUE | S53: TRUE | T53: TRUE | U53: TRUE | V53: TRUE | W53: TRUE | X53: TRUE | Y53: TRUE | Z53: TRUE | AA53: TRUE | AB53: TRUE | AC53: TRUE | AD53: TRUE | AE53: TRUE | AF53: TRUE | AG53: FALSE | AH53: FALSE | AI53: FALSE | AJ53: FALSE | AK53: FALSE | AL53: FALSE | AM53: FALSE | AN53: FALSE | AO53: FALSE | AP53: FALSE | AQ53: FALSE | AR53: FALSE | AS53: FALSE | AT53: FALSE | AU53: FALSE
D54: Total Payment | F54: =E9 -> 0.0075 | G54: =PMT(F54,G53,-G36) -> 56.2709201 | H54: =$G$54*H53 -> 56.2709201 | I54: =$G$54*I53 -> 56.2709201 | J54: 56.2709201 | K54: 56.2709201 | L54: 56.2709201 | M54: 56.2709201 | N54: 56.2709201 | O54: 56.2709201 | P54: 56.2709201 | Q54: 56.2709201 | R54: 56.2709201 | S54: 56.2709201 | T54: 56.2709201 | U54: 56.2709201 | V54: 56.2709201 | W54: 56.2709201 | X54: 56.2709201 | Y54: 56.2709201 | Z54: 56.2709201 | AA54: 56.2709201 | AB54: 56.2709201 | AC54: 56.2709201 | AD54: 56.2709201 | AE54: 56.2709201 | AF54: 56.2709201 | AG54: 0 | AH54: 0 | AI54: 0 | AJ54: 0 | AK54: 0 | AL54: 0 | AM54: 0 | AN54: 0 | AO54: 0 | AP54: 0 | AQ54: 0 | AR54: 0 | AS54: 0 | AT54: 0 | AU54: 0
D56: Opening Balance | H56: =G58 -> 1278.405274 | I56: =H58 -> 1231.722393 | J56: 1184.689391 | K56: 1137.303642 | L56: 1089.562499 | M56: 1041.463297 | N56: 993.003352 | O56: 944.179957 | P56: 894.9903866 | Q56: 845.4318944 | R56: 795.5017135 | S56: 745.1970563 | T56: 694.5151141 | U56: 643.4530574 | V56: 592.0080352 | W56: 540.1771754 | X56: 487.9575841 | Y56: 435.3463459 | Z56: 382.3405234 | AA56: 328.9371572 | AB56: 275.1332658 | AC56: 220.9258452 | AD56: 166.3118689 | AE56: 111.2882878 | AF56: 55.85202988 | AG56: 0 | AH56: 0 | AI56: 0 | AJ56: 0 | AK56: 0 | AL56: 0 | AM56: 0 | AN56: 0 | AO56: 0 | AP56: 0 | AQ56: 0 | AR56: 0 | AS56: 0 | AT56: 0 | AU56: 0
D57: Less: Repayment | H57: =IF(H54,H54-H59)*1 -> 46.68288055 | I57: =IF(I54,I54-I59)*1 -> 47.03300215 | J57: 47.38574967 | K57: 47.74114279 | L57: 48.09920136 | M57: 48.45994537 | N57: 48.82339496 | O57: 49.18957042 | P57: 49.5584922 | Q57: 49.93018089 | R57: 50.30465725 | S57: 50.68194218 | T57: 51.06205674 | U57: 51.44502217 | V57: 51.83085984 | W57: 52.21959128 | X57: 52.61123822 | Y57: 53.00582251 | Z57: 53.40336617 | AA57: 53.80389142 | AB57: 54.20742061 | AC57: 54.61397626 | AD57: 55.02358108 | AE57: 55.43625794 | AF57: 55.85202988 | AG57: 0 | AH57: 0 | AI57: 0 | AJ57: 0 | AK57: 0 | AL57: 0 | AM57: 0 | AN57: 0 | AO57: 0 | AP57: 0 | AQ57: 0 | AR57: 0 | AS57: 0 | AT57: 0 | AU57: 0
D58: Closing Balance | G58: =G36 -> 1278.405274 | H58: =H56-H57 -> 1231.722393 | I58: =I56-I57 -> 1184.689391 | J58: 1137.303642 | K58: 1089.562499 | L58: 1041.463297 | M58: 993.003352 | N58: 944.179957 | O58: 894.9903866 | P58: 845.4318944 | Q58: 795.5017135 | R58: 745.1970563 | S58: 694.5151141 | T58: 643.4530574 | U58: 592.0080352 | V58: 540.1771754 | W58: 487.9575841 | X58: 435.3463459 | Y58: 382.3405234 | Z58: 328.9371572 | AA58: 275.1332658 | AB58: 220.9258452 | AC58: 166.3118689 | AD58: 111.2882878 | AE58: 55.85202988 | AF58: 0 | AG58: 0 | AH58: 0 | AI58: 0 | AJ58: 0 | AK58: 0 | AL58: 0 | AM58: 0 | AN58: 0 | AO58: 0 | AP58: 0 | AQ58: 0 | AR58: 0 | AS58: 0 | AT58: 0 | AU58: 0
D59: Interest | F59: =F54 -> 0.0075 | H59: =H56*$F$59 -> 9.588039554 | I59: =I56*$F$59 -> 9.23791795 | J59: 8.885170434 | K59: 8.529777311 | L59: 8.171718741 | M59: 7.81097473 | N59: 7.44752514 | O59: 7.081349678 | P59: 6.7124279 | Q59: 6.340739208 | R59: 5.966262852 | S59: 5.588977922 | T59: 5.208863356 | U59: 4.82589793 | V59: 4.440060264 | W59: 4.051328815 | X59: 3.659681881 | Y59: 3.265097594 | Z59: 2.867553925 | AA59: 2.467028679 | AB59: 2.063499493 | AC59: 1.656943839 | AD59: 1.247339017 | AE59: 0.8346621586 | AF59: 0.4188902241 | AG59: 0 | AH59: 0 | AI59: 0 | AJ59: 0 | AK59: 0 | AL59: 0 | AM59: 0 | AN59: 0 | AO59: 0 | AP59: 0 | AQ59: 0 | AR59: 0 | AS59: 0 | AT59: 0 | AU59: 0
D60: Fees
B62: Cash Flow Waterfall
D63: EBITDA | H63: =H24 -> 1591.564915 | I63: 1591.564915 | J63: 1591.564915 | K63: 1591.564915 | L63: 1591.564915 | M63: 1591.564915 | N63: 1591.564915 | O63: 1591.564915 | P63: 1591.564915 | Q63: 1591.564915 | R63: 1591.564915 | S63: 1591.564915 | T63: 1591.564915 | U63: 1591.564915 | V63: 1591.564915 | W63: 1591.564915 | X63: 1591.564915 | Y63: 1591.564915 | Z63: 1591.564915 | AA63: 1591.564915 | AB63: 1591.564915 | AC63: 1591.564915 | AD63: 1591.564915 | AE63: 1591.564915 | AF63: 1591.564915 | AG63: 0 | AH63: 0 | AI63: 0 | AJ63: 0 | AK63: 0 | AL63: 0 | AM63: 0 | AN63: 0 | AO63: 0 | AP63: 0 | AQ63: 0 | AR63: 0 | AS63: 0 | AT63: 0 | AU63: 0
D64: Less: Senior Debt Service | H64: =H47+H49 -> 447.0884661 | I64: =I47+I49 -> 447.0884661 | J64: 447.0884661 | K64: 447.0884661 | L64: 447.0884661 | M64: 447.0884661 | N64: 447.0884661 | O64: 447.0884661 | P64: 447.0884661 | Q64: 447.0884661 | R64: 0 | S64: 0 | T64: 0 | U64: 0 | V64: 0 | W64: 0 | X64: 0 | Y64: 0 | Z64: 0 | AA64: 0 | AB64: 0 | AC64: 0 | AD64: 0 | AE64: 0 | AF64: 0 | AG64: 0 | AH64: 0 | AI64: 0 | AJ64: 0 | AK64: 0 | AL64: 0 | AM64: 0 | AN64: 0 | AO64: 0 | AP64: 0 | AQ64: 0 | AR64: 0 | AS64: 0 | AT64: 0 | AU64: 0
D65: Sub-Total | H65: =H63-H64 -> 1144.476449 | I65: =I63-I64 -> 1144.476449 | J65: 1144.476449 | K65: 1144.476449 | L65: 1144.476449 | M65: 1144.476449 | N65: 1144.476449 | O65: 1144.476449 | P65: 1144.476449 | Q65: 1144.476449 | R65: 1591.564915 | S65: 1591.564915 | T65: 1591.564915 | U65: 1591.564915 | V65: 1591.564915 | W65: 1591.564915 | X65: 1591.564915 | Y65: 1591.564915 | Z65: 1591.564915 | AA65: 1591.564915 | AB65: 1591.564915 | AC65: 1591.564915 | AD65: 1591.564915 | AE65: 1591.564915 | AF65: 1591.564915 | AG65: 0 | AH65: 0 | AI65: 0 | AJ65: 0 | AK65: 0 | AL65: 0 | AM65: 0 | AN65: 0 | AO65: 0 | AP65: 0 | AQ65: 0 | AR65: 0 | AS65: 0 | AT65: 0 | AU65: 0
D66: Less: Concessional Debt Service | H66: =H57+H59 -> 56.2709201 | I66: =I57+I59 -> 56.2709201 | J66: 56.2709201 | K66: 56.2709201 | L66: 56.2709201 | M66: 56.2709201 | N66: 56.2709201 | O66: 56.2709201 | P66: 56.2709201 | Q66: 56.2709201 | R66: 56.2709201 | S66: 56.2709201 | T66: 56.2709201 | U66: 56.2709201 | V66: 56.2709201 | W66: 56.2709201 | X66: 56.2709201 | Y66: 56.2709201 | Z66: 56.2709201 | AA66: 56.2709201 | AB66: 56.2709201 | AC66: 56.2709201 | AD66: 56.2709201 | AE66: 56.2709201 | AF66: 56.2709201 | AG66: 0 | AH66: 0 | AI66: 0 | AJ66: 0 | AK66: 0 | AL66: 0 | AM66: 0 | AN66: 0 | AO66: 0 | AP66: 0 | AQ66: 0 | AR66: 0 | AS66: 0 | AT66: 0 | AU66: 0
D67: Dividends | H67: =H65-H66 -> 1088.205529 | I67: =I65-I66 -> 1088.205529 | J67: 1088.205529 | K67: 1088.205529 | L67: 1088.205529 | M67: 1088.205529 | N67: 1088.205529 | O67: 1088.205529 | P67: 1088.205529 | Q67: 1088.205529 | R67: 1535.293995 | S67: 1535.293995 | T67: 1535.293995 | U67: 1535.293995 | V67: 1535.293995 | W67: 1535.293995 | X67: 1535.293995 | Y67: 1535.293995 | Z67: 1535.293995 | AA67: 1535.293995 | AB67: 1535.293995 | AC67: 1535.293995 | AD67: 1535.293995 | AE67: 1535.293995 | AF67: 1535.293995 | AG67: 0 | AH67: 0 | AI67: 0 | AJ67: 0 | AK67: 0 | AL67: 0 | AM67: 0 | AN67: 0 | AO67: 0 | AP67: 0 | AQ67: 0 | AR67: 0 | AS67: 0 | AT67: 0 | AU67: 0
D68: Equity cashflow | G68: =-G38 -> -5721.594726 | H68: =H67 -> 1088.205529 | I68: =I67 -> 1088.205529 | J68: 1088.205529 | K68: 1088.205529 | L68: 1088.205529 | M68: 1088.205529 | N68: 1088.205529 | O68: 1088.205529 | P68: 1088.205529 | Q68: 1088.205529 | R68: 1535.293995 | S68: 1535.293995 | T68: 1535.293995 | U68: 1535.293995 | V68: 1535.293995 | W68: 1535.293995 | X68: 1535.293995 | Y68: 1535.293995 | Z68: 1535.293995 | AA68: 1535.293995 | AB68: 1535.293995 | AC68: 1535.293995 | AD68: 1535.293995 | AE68: 1535.293995 | AF68: 1535.293995 | AG68: 0 | AH68: 0 | AI68: 0 | AJ68: 0 | AK68: 0 | AL68: 0 | AM68: 0 | AN68: 0 | AO68: 0 | AP68: 0 | AQ68: 0 | AR68: 0 | AS68: 0 | AT68: 0 | AU68: 0
D70: Equity IRR | E70: =IRR(68:68) -> 0.2
D71: Target IRR | E71: =L6 -> 0.2
D72: Difference | E72: =E71-E70 -> 9.603429163e-15
D74: NPV at Target IRR | E74: =NPV(E71,68:68) -> -6.273500238e-12
A77: Valuation
D80: Concessional Debt Service | G80: 0 | H80: =H57+H59 -> 56.2709201 | I80: =I57+I59 -> 56.2709201 | J80: 56.2709201 | K80: 56.2709201 | L80: 56.2709201 | M80: 56.2709201 | N80: 56.2709201 | O80: 56.2709201 | P80: 56.2709201 | Q80: 56.2709201 | R80: 56.2709201 | S80: 56.2709201 | T80: 56.2709201 | U80: 56.2709201 | V80: 56.2709201 | W80: 56.2709201 | X80: 56.2709201 | Y80: 56.2709201 | Z80: 56.2709201 | AA80: 56.2709201 | AB80: 56.2709201 | AC80: 56.2709201 | AD80: 56.2709201 | AE80: 56.2709201 | AF80: 56.2709201 | AG80: 0 | AH80: 0 | AI80: 0 | AJ80: 0 | AK80: 0 | AL80: 0 | AM80: 0 | AN80: 0 | AO80: 0 | AP80: 0 | AQ80: 0 | AR80: 0 | AS80: 0 | AT80: 0 | AU80: 0
D81: Concessional Intrest | H81: =H59 -> 9.588039554 | I81: =I59 -> 9.23791795 | J81: 8.885170434 | K81: 8.529777311 | L81: 8.171718741 | M81: 7.81097473 | N81: 7.44752514 | O81: 7.081349678 | P81: 6.7124279 | Q81: 6.340739208 | R81: 5.966262852 | S81: 5.588977922 | T81: 5.208863356 | U81: 4.82589793 | V81: 4.440060264 | W81: 4.051328815 | X81: 3.659681881 | Y81: 3.265097594 | Z81: 2.867553925 | AA81: 2.467028679 | AB81: 2.063499493 | AC81: 1.656943839 | AD81: 1.247339017 | AE81: 0.8346621586 | AF81: 0.4188902241 | AG81: 0 | AH81: 0 | AI81: 0 | AJ81: 0 | AK81: 0 | AL81: 0 | AM81: 0 | AN81: 0 | AO81: 0 | AP81: 0 | AQ81: 0 | AR81: 0 | AS81: 0 | AT81: 0 | AU81: 0
D82: Total Interest | E82: =SUM(81:81) -> 128.3677286
D84: Total Sum | E84: =SUM(G80:AU80) -> 1406.773002
D85: PV of Debt Service | E85: =NPV(F85,80:80) -> 951.3144101 | F85: 0.03
D86: Debt Issue | E86: =E8 -> 1278.405274
D87: PV | E87: =E71 -> 0.2 | F87: =NPV(E87,80:80) -> 232.0043949
D90: Market Loan
D91: Switch | E91: =E43 -> 1 | F91: =F43 -> 10 | G91: =F91-E91+1 -> 10 | H91: =AND(H2>=$E$91,H2<=$F$91) -> TRUE | I91: =AND(I2>=$E$91,I2<=$F$91) -> TRUE | J91: TRUE | K91: TRUE | L91: TRUE | M91: TRUE | N91: TRUE | O91: TRUE | P91: TRUE | Q91: TRUE | R91: FALSE | S91: FALSE | T91: FALSE | U91: FALSE | V91: FALSE | W91: FALSE | X91: FALSE | Y91: FALSE | Z91: FALSE | AA91: FALSE | AB91: FALSE | AC91: FALSE | AD91: FALSE | AE91: FALSE | AF91: FALSE | AG91: FALSE | AH91: FALSE | AI91: FALSE | AJ91: FALSE | AK91: FALSE | AL91: FALSE | AM91: FALSE | AN91: FALSE | AO91: FALSE | AP91: FALSE | AQ91: FALSE | AR91: FALSE | AS91: FALSE | AT91: FALSE | AU91: FALSE
D92: Payment | F92: =E16 -> 0.08 | G92: =PMT(F92,G91,-E86) -> 190.5200843 | H92: =$G$92*H91 -> 190.5200843 | I92: =$G$92*I91 -> 190.5200843 | J92: 190.5200843 | K92: 190.5200843 | L92: 190.5200843 | M92: 190.5200843 | N92: 190.5200843 | O92: 190.5200843 | P92: 190.5200843 | Q92: 190.5200843 | R92: 0 | S92: 0 | T92: 0 | U92: 0 | V92: 0 | W92: 0 | X92: 0 | Y92: 0 | Z92: 0 | AA92: 0 | AB92: 0 | AC92: 0 | AD92: 0 | AE92: 0 | AF92: 0 | AG92: 0 | AH92: 0 | AI92: 0 | AJ92: 0 | AK92: 0 | AL92: 0 | AM92: 0 | AN92: 0 | AO92: 0 | AP92: 0 | AQ92: 0 | AR92: 0 | AS92: 0 | AT92: 0 | AU92: 0
D94: Opening Balance | H94: =G96 -> 1278.405274 | I94: =H96 -> 1190.157611 | J94: 1094.850136 | K94: 991.9180627 | L94: 880.7514234 | M94: 760.6914529 | N94: 631.0266848 | O94: 490.9887353 | P94: 339.7477498 | Q94: 176.4074855 | R94: 3.126388037e-13 | S94: 3.37649908e-13 | T94: 3.646619007e-13 | U94: 3.938348527e-13 | V94: 4.253416409e-13 | W94: 4.593689722e-13 | X94: 4.9611849e-13 | Y94: 5.358079692e-13 | Z94: 5.786726067e-13 | AA94: 6.249664153e-13 | AB94: 6.749637285e-13 | AC94: 7.289608268e-13 | AD94: 7.872776929e-13 | AE94: 8.502599084e-13 | AF94: 9.18280701e-13 | AG94: 9.917431571e-13 | AH94: 1.07108261e-12 | AI94: 1.156769218e-12 | AJ94: 1.249310756e-12 | AK94: 1.349255616e-12 | AL94: 1.457196066e-12 | AM94: 1.573771751e-12 | AN94: 1.699673491e-12 | AO94: 1.83564737e-12 | AP94: 1.98249916e-12 | AQ94: 2.141099093e-12 | AR94: 2.31238702e-12 | AS94: 2.497377982e-12 | AT94: 2.69716822e-12 | AU94: 2.912941678e-12
D95: Less: Payment | H95: =H92-H97 -> 88.2476624 | I95: =I92-I97 -> 95.3074754 | J95: 102.9320734 | K95: 111.1666393 | L95: 120.0599704 | M95: 129.6647681 | N95: 140.0379495 | O95: 151.2409855 | P95: 163.3402643 | Q95: 176.4074855 | R95: -2.50111043e-14 | S95: -2.701199264e-14 | T95: -2.917295205e-14 | U95: -3.150678822e-14 | V95: -3.402733128e-14 | W95: -3.674951778e-14 | X95: -3.96894792e-14 | Y95: -4.286463754e-14 | Z95: -4.629380854e-14 | AA95: -4.999731322e-14 | AB95: -5.399709828e-14 | AC95: -5.831686614e-14 | AD95: -6.298221543e-14 | AE95: -6.802079267e-14 | AF95: -7.346245608e-14 | AG95: -7.933945257e-14 | AH95: -8.568660877e-14 | AI95: -9.254153748e-14 | AJ95: -9.994486047e-14 | AK95: -1.079404493e-13 | AL95: -1.165756853e-13 | AM95: -1.259017401e-13 | AN95: -1.359738793e-13 | AO95: -1.468517896e-13 | AP95: -1.585999328e-13 | AQ95: -1.712879274e-13 | AR95: -1.849909616e-13 | AS95: -1.997902385e-13 | AT95: -2.157734576e-13 | AU95: -2.330353342e-13
D96: Closing Balance | G96: =E86 -> 1278.405274 | H96: =H94-H95 -> 1190.157611 | I96: =I94-I95 -> 1094.850136 | J96: 991.9180627 | K96: 880.7514234 | L96: 760.6914529 | M96: 631.0266848 | N96: 490.9887353 | O96: 339.7477498 | P96: 176.4074855 | Q96: 3.126388037e-13 | R96: 3.37649908e-13 | S96: 3.646619007e-13 | T96: 3.938348527e-13 | U96: 4.253416409e-13 | V96: 4.593689722e-13 | W96: 4.9611849e-13 | X96: 5.358079692e-13 | Y96: 5.786726067e-13 | Z96: 6.249664153e-13 | AA96: 6.749637285e-13 | AB96: 7.289608268e-13 | AC96: 7.872776929e-13 | AD96: 8.502599084e-13 | AE96: 9.18280701e-13 | AF96: 9.917431571e-13 | AG96: 1.07108261e-12 | AH96: 1.156769218e-12 | AI96: 1.249310756e-12 | AJ96: 1.349255616e-12 | AK96: 1.457196066e-12 | AL96: 1.573771751e-12 | AM96: 1.699673491e-12 | AN96: 1.83564737e-12 | AO96: 1.98249916e-12 | AP96: 2.141099093e-12 | AQ96: 2.31238702e-12 | AR96: 2.497377982e-12 | AS96: 2.69716822e-12 | AT96: 2.912941678e-12 | AU96: 3.145977012e-12
D97: Interest | F97: =F92 -> 0.08 | H97: =H94*$F$97 -> 102.2724219 | I97: =I94*$F$97 -> 95.21260892 | J97: 87.58801089 | K97: 79.35344501 | L97: 70.46011387 | M97: 60.85531623 | N97: 50.48213479 | O97: 39.27909882 | P97: 27.17981998 | Q97: 14.11259884 | R97: 2.50111043e-14 | S97: 2.701199264e-14 | T97: 2.917295205e-14 | U97: 3.150678822e-14 | V97: 3.402733128e-14 | W97: 3.674951778e-14 | X97: 3.96894792e-14 | Y97: 4.286463754e-14 | Z97: 4.629380854e-14 | AA97: 4.999731322e-14 | AB97: 5.399709828e-14 | AC97: 5.831686614e-14 | AD97: 6.298221543e-14 | AE97: 6.802079267e-14 | AF97: 7.346245608e-14 | AG97: 7.933945257e-14 | AH97: 8.568660877e-14 | AI97: 9.254153748e-14 | AJ97: 9.994486047e-14 | AK97: 1.079404493e-13 | AL97: 1.165756853e-13 | AM97: 1.259017401e-13 | AN97: 1.359738793e-13 | AO97: 1.468517896e-13 | AP97: 1.585999328e-13 | AQ97: 1.712879274e-13 | AR97: 1.849909616e-13 | AS97: 1.997902385e-13 | AT97: 2.157734576e-13 | AU97: 2.330353342e-13
D99: Difference | H99: =H97-H80 -> 46.00150181 | I99: =I97-I80 -> 38.94168882 | J99: 31.31709079 | K99: 23.08252491 | L99: 14.18919377 | M99: 4.584396133 | N99: -5.788785313 | O99: -16.99182128 | P99: -29.09110011 | Q99: -42.15832126 | R99: -56.2709201 | S99: -56.2709201 | T99: -56.2709201 | U99: -56.2709201 | V99: -56.2709201 | W99: -56.2709201 | X99: -56.2709201 | Y99: -56.2709201 | Z99: -56.2709201 | AA99: -56.2709201 | AB99: -56.2709201 | AC99: -56.2709201 | AD99: -56.2709201 | AE99: -56.2709201 | AF99: -56.2709201 | AG99: 7.933945257e-14 | AH99: 8.568660877e-14 | AI99: 9.254153748e-14 | AJ99: 9.994486047e-14 | AK99: 1.079404493e-13 | AL99: 1.165756853e-13 | AM99: 1.259017401e-13 | AN99: 1.359738793e-13 | AO99: 1.468517896e-13 | AP99: 1.585999328e-13 | AQ99: 1.712879274e-13 | AR99: 1.849909616e-13 | AS99: 1.997902385e-13 | AT99: 2.157734576e-13 | AU99: 2.330353342e-13
D100: PV | E100: 0 | F100: =NPV(E100,99:99) -> -779.9774332
D105: Cash Flow Benefit from Concessional Loan | H105: =H80-H111 -> 0 | I105: 0 | J105: 0 | K105: 0 | L105: 0 | M105: 0 | N105: 0 | O105: 0 | P105: 0 | Q105: 0 | R105: 0 | S105: 0 | T105: 0 | U105: 0 | V105: 0 | W105: 0 | X105: 0 | Y105: 0 | Z105: 0 | AA105: 0 | AB105: 0 | AC105: 0 | AD105: 0 | AE105: 0 | AF105: 0 | AG105: 0 | AH105: 0 | AI105: 0 | AJ105: 0 | AK105: 0 | AL105: 0 | AM105: 0 | AN105: 0 | AO105: 0 | AP105: 0 | AQ105: 0 | AR105: 0 | AS105: 0 | AT105: 0 | AU105: 0
D107: Value | E107: =NPV(E16,105:105) -> 0
D110: Switch for Repayment | F110: =E10 -> 0 | G110: =E10 -> 0 | H110: =H2<=$E$12 -> TRUE | I110: TRUE | J110: TRUE | K110: TRUE | L110: TRUE | M110: TRUE | N110: TRUE | O110: TRUE | P110: TRUE | Q110: TRUE | R110: TRUE | S110: TRUE | T110: TRUE | U110: TRUE | V110: TRUE | W110: TRUE | X110: TRUE | Y110: TRUE | Z110: TRUE | AA110: TRUE | AB110: TRUE | AC110: TRUE | AD110: TRUE | AE110: TRUE | AF110: TRUE | AG110: FALSE | AH110: FALSE | AI110: FALSE | AJ110: FALSE | AK110: FALSE | AL110: FALSE | AM110: FALSE | AN110: FALSE | AO110: FALSE | AP110: FALSE | AQ110: FALSE | AR110: FALSE | AS110: FALSE | AT110: FALSE | AU110: FALSE
D111: Payment for Concessional Loan | E111: =PMT(E9,E12,-E8) -> 56.2709201 | H111: =IF(H110,$E$111) -> 56.2709201 | I111: 56.2709201 | J111: 56.2709201 | K111: 56.2709201 | L111: 56.2709201 | M111: 56.2709201 | N111: 56.2709201 | O111: 56.2709201 | P111: 56.2709201 | Q111: 56.2709201 | R111: 56.2709201 | S111: 56.2709201 | T111: 56.2709201 | U111: 56.2709201 | V111: 56.2709201 | W111: 56.2709201 | X111: 56.2709201 | Y111: 56.2709201 | Z111: 56.2709201 | AA111: 56.2709201 | AB111: 56.2709201 | AC111: 56.2709201 | AD111: 56.2709201 | AE111: 56.2709201 | AF111: 56.2709201 | AG111: FALSE | AH111: FALSE | AI111: FALSE | AJ111: FALSE | AK111: FALSE | AL111: FALSE | AM111: FALSE | AN111: FALSE | AO111: FALSE | AP111: FALSE | AQ111: FALSE | AR111: FALSE | AS111: FALSE | AT111: FALSE | AU111: FALSE

Sheet Summary
P1: Level | Q1: CF Red | R1: Year
B2: Scenario | G2: GCF Grant | H2: ='Financial model'!F31 -> 0 | J2: Project IRR | K2: ='Financial model'!F54 -> 0.08403097555 | N2: Min DSCR | P2: ='Financial model'!E121 -> 1.330126868 | Q2: =(P2-1)/P2 -> 0.2481920154
B3: Cash Sensitivity | D3: ='Financial model'!F3 -> 1 | G3: GCF Debt | H3: ='Financial model'!F25 -> 0.4 | J3: Debt IRR | K3: ='Financial model'!E124 -> 0.03927037033 | N3: LLCR - Regular | P3: ='Financial model'!E138 -> 1.572262717 | Q3: =(P3-1)/P3 -> 0.3639739788 | R3: ='Financial model'!G21 -> 2028 | S3: =(1-Q3) -> 0.6360260212
B4: LCOE | D4: ='Financial model'!$H$149 -> 120.9575214 | G4: Grace Period | H4: ='Financial model'!F26 -> 7 | J4: Equity IRR | K4: ='Financial model'!E116 -> 0.138553532 | N4: LLCR - Total | P4: ='Financial model'!E147 -> 1.877390344 | Q4: =(P4-1)/P4 -> 0.4673457212 | R4: ='Financial model'!G27 -> 2038
G5: Tenor | H5: ='Financial model'!F27 -> 20 | J5: GCF IRR | K5: ='Financial model'!$F$28 -> 0.0075 | N5: PLCR | P5: ='Financial model'!E129 -> 2.128261236 | Q5: 0.5301328695 | R5: ='Financial model'!AG2 -> 2043

Sheet Financial model
A1: Timeline
B2: Year | E2: Scenario | F2: =Scenarios!C12 -> Company case | H2: 2018 | I2: 2019 | J2: 2020 | K2: 2021 | L2: 2022 | M2: 2023 | N2: 2024 | O2: 2025 | P2: 2026 | Q2: 2027 | R2: 2028 | S2: 2029 | T2: 2030 | U2: 2031 | V2: 2032 | W2: 2033 | X2: 2034 | Y2: 2035 | Z2: 2036 | AA2: 2037 | AB2: 2038 | AC2: 2039 | AD2: 2040 | AE2: 2041 | AF2: 2042 | AG2: 2043
E3: Cash Sensitivity | F3: =G3/100 -> 1 | G3: 100
A5: Operating Assumptions
B6: Plant capacity | E6: MWP | F6: 10
B7: Capacity factor | E7: % | F7: =Scenarios!D12 -> 0.176
B8: EPC | E8: USD | F8: =Scenarios!E12 -> 18434766
B9: Cost per KW | E9: USD | F9: =F8/F6/1000 -> 1843.4766
G10: 2018 | H10: 2019 | I10: 2022 | J10: 2025 | K10: 2030
B11: O&M cost | E11: USD/KWP year | H11: 10 | I11: 12 | J11: 14 | K11: 16
G13: 2018 | H13: 2019 | I13: =2019+10 -> 2029
B14: PPA price | E14: USD/MW hour | H14: 130 | I14: 110
B15: Hours | E15: Hours | F15: 8760
A17: Financing
B18: Conventional debt
C19: Total Debt | E19: % | F19: 0.7
C20: Debt After GCF | E20: % | F20: =F19-F25 -> 0.3
C21: Repayment | E21: years | F21: 10 | G21: =F21+H2 -> 2028
C22: Interest rate | E22: % | F22: 0.13
B24: GCF Concessional debt
C25: Size | E25: % | F25: =H25/100 -> 0.4 | H25: 40 | I25: GCF_DEBT
C26: Grace period | E26: years | F26: =H26 -> 7 | H26: 7
C27: Repayment | E27: years | F27: =H27 -> 20 | G27: =F27+H2 -> 2038 | H27: 20
C28: Interest rate | E28: % | F28: 0.0075
B30: GCF Grant
C31: Grant as % of Cost | F31: =H31/100 -> 0 | H31: 0 | I31: GCF_GRANT
C33: Target IRR | F33: =H33/100 -> 0.16 | H33: 16
C34: Realised IRR | F34: =E116 -> 0.138553532
C35: Difference | F35: =F33-F34 -> 0.02144646795
A37: Operating model
B38: Operational
C39: Capacity | E39: MWP | F39: =F6 -> 10 | I39: =$F$39 -> 10 | J39: =$F$39 -> 10 | K39: 10 | L39: 10 | M39: 10 | N39: 10 | O39: 10 | P39: 10 | Q39: 10 | R39: 10 | S39: 10 | T39: 10 | U39: 10 | V39: 10 | W39: 10 | X39: 10 | Y39: 10 | Z39: 10 | AA39: 10 | AB39: 10 | AC39: 10 | AD39: 10 | AE39: 10 | AF39: 10 | AG39: 10
C40: Capacity factor | E40: % | F40: =F7 -> 0.176 | I40: =$F$40 -> 0.176 | J40: =$F$40 -> 0.176 | K40: 0.176 | L40: 0.176 | M40: 0.176 | N40: 0.176 | O40: 0.176 | P40: 0.176 | Q40: 0.176 | R40: 0.176 | S40: 0.176 | T40: 0.176 | U40: 0.176 | V40: 0.176 | W40: 0.176 | X40: 0.176 | Y40: 0.176 | Z40: 0.176 | AA40: 0.176 | AB40: 0.176 | AC40: 0.176 | AD40: 0.176 | AE40: 0.176 | AF40: 0.176 | AG40: 0.176
C41: Hours in a period | E41: Hours | F41: =F15 -> 8760 | I41: =$F$41 -> 8760 | J41: =$F$41 -> 8760 | K41: 8760 | L41: 8760 | M41: 8760 | N41: 8760 | O41: 8760 | P41: 8760 | Q41: 8760 | R41: 8760 | S41: 8760 | T41: 8760 | U41: 8760 | V41: 8760 | W41: 8760 | X41: 8760 | Y41: 8760 | Z41: 8760 | AA41: 8760 | AB41: 8760 | AC41: 8760 | AD41: 8760 | AE41: 8760 | AF41: 8760 | AG41: 8760
D42: Energy generated | E42: MWh | I42: =I39*I40*I41 -> 15417.6 | J42: =J39*J40*J41 -> 15417.6 | K42: 15417.6 | L42: 15417.6 | M42: 15417.6 | N42: 15417.6 | O42: 15417.6 | P42: 15417.6 | Q42: 15417.6 | R42: 15417.6 | S42: 15417.6 | T42: 15417.6 | U42: 15417.6 | V42: 15417.6 | W42: 15417.6 | X42: 15417.6 | Y42: 15417.6 | Z42: 15417.6 | AA42: 15417.6 | AB42: 15417.6 | AC42: 15417.6 | AD42: 15417.6 | AE42: 15417.6 | AF42: 15417.6 | AG42: 15417.6
B44: Revenues, Expenses and Cap Exp
C45: EPC | E45: USD | F45: =F8 -> 18434766 | H45: =F45 -> 18434766
C46: PPA contract | E46: USD/MWh | I46: =LOOKUP(I2,13:13,14:14) -> 130 | J46: 130 | K46: 130 | L46: 130 | M46: 130 | N46: 130 | O46: 130 | P46: 130 | Q46: 130 | R46: 130 | S46: 110 | T46: 110 | U46: 110 | V46: 110 | W46: 110 | X46: 110 | Y46: 110 | Z46: 110 | AA46: 110 | AB46: 110 | AC46: 110 | AD46: 110 | AE46: 110 | AF46: 110 | AG46: 110
C47: Revenues | E47: USD | I47: =I46*I42 -> 2004288 | J47: =J46*J42 -> 2004288 | K47: 2004288 | L47: 2004288 | M47: 2004288 | N47: 2004288 | O47: 2004288 | P47: 2004288 | Q47: 2004288 | R47: 2004288 | S47: 1695936 | T47: 1695936 | U47: 1695936 | V47: 1695936 | W47: 1695936 | X47: 1695936 | Y47: 1695936 | Z47: 1695936 | AA47: 1695936 | AB47: 1695936 | AC47: 1695936 | AD47: 1695936 | AE47: 1695936 | AF47: 1695936 | AG47: 1695936
C49: O&M contract | E49: USD/KW year | I49: =LOOKUP(I2,10:10,11:11) -> 10 | J49: 10 | K49: 10 | L49: 12 | M49: 12 | N49: 12 | O49: 14 | P49: 14 | Q49: 14 | R49: 14 | S49: 14 | T49: 16 | U49: 16 | V49: 16 | W49: 16 | X49: 16 | Y49: 16 | Z49: 16 | AA49: 16 | AB49: 16 | AC49: 16 | AD49: 16 | AE49: 16 | AF49: 16 | AG49: 16
C50: O&M expenses | E50: USD | F50: =Scenarios!G12 -> 0.8 | I50: =I49*I39*1000*$F$50 -> 80000 | J50: =J49*J39*1000*$F$50 -> 80000 | K50: 80000 | L50: 96000 | M50: 96000 | N50: 96000 | O50: 112000 | P50: 112000 | Q50: 112000 | R50: 112000 | S50: 112000 | T50: 128000 | U50: 128000 | V50: 128000 | W50: 128000 | X50: 128000 | Y50: 128000 | Z50: 128000 | AA50: 128000 | AB50: 128000 | AC50: 128000 | AD50: 128000 | AE50: 128000 | AF50: 128000 | AG50: 128000
B52: EBITDA | E52: USD | F52: =F3 -> 1 | I52: =(I47-I50)*$F$52 -> 1924288 | J52: =(J47-J50)*$F$52 -> 1924288 | K52: 1924288 | L52: 1908288 | M52: 1908288 | N52: 1908288 | O52: 1892288 | P52: 1892288 | Q52: 1892288 | R52: 1892288 | S52: 1583936 | T52: 1567936 | U52: 1567936 | V52: 1567936 | W52: 1567936 | X52: 1567936 | Y52: 1567936 | Z52: 1567936 | AA52: 1567936 | AB52: 1567936 | AC52: 1567936 | AD52: 1567936 | AE52: 1567936 | AF52: 1567936 | AG52: 1567936
B53: Pre-tax cashflow | E53: USD | H53: =H52-H45 -> -18434766 | I53: =I52-I45 -> 1924288 | J53: 1924288 | K53: 1924288 | L53: 1908288 | M53: 1908288 | N53: 1908288 | O53: 1892288 | P53: 1892288 | Q53: 1892288 | R53: 1892288 | S53: 1583936 | T53: 1567936 | U53: 1567936 | V53: 1567936 | W53: 1567936 | X53: 1567936 | Y53: 1567936 | Z53: 1567936 | AA53: 1567936 | AB53: 1567936 | AC53: 1567936 | AD53: 1567936 | AE53: 1567936 | AF53: 1567936 | AG53: 1567936
B54: Project IRR Pre-tax | E54: % | F54: =IRR(53:53) -> 0.08403097555
A56: Sources and uses of funds
B57: Uses of funds
C58: Capex | H58: =H45 -> 18434766
B60: Sources of funds
C61: Conventional debt | G61: =F20 -> 0.3 | H61: =$H$58*G61 -> 5530429.8
C62: GCF concessional debt | G62: =F25 -> 0.4 | H62: =$H$58*G62 -> 7373906.4
C63: GCF Grant | G63: =F31 -> 0 | H63: 0
C64: Investor Equity | H64: =H58-H61-H62-H63 -> 5530429.8
D65: Total | H65: =SUM(H61:H64) -> 18434766
A67: Debt schedule
B68: Conventional debt | I68: 1 | J68: 2 | K68: 3 | L68: 4 | M68: 5 | N68: 6 | O68: 7 | P68: 8 | Q68: 9 | R68: 10 | S68: 11 | T68: 12 | U68: 13 | V68: 14 | W68: 15 | X68: 16 | Y68: 17 | Z68: 18 | AA68: 19 | AB68: 20 | AC68: 21 | AD68: 22 | AE68: 23 | AF68: 24 | AG68: 25
C69: Repayment switch | G69: =F21 -> 10 | I69: =I68<=$G$69 -> TRUE | J69: =J68<=$G$69 -> TRUE | K69: TRUE | L69: TRUE | M69: TRUE | N69: TRUE | O69: TRUE | P69: TRUE | Q69: TRUE | R69: TRUE | S69: FALSE | T69: FALSE | U69: FALSE | V69: FALSE | W69: FALSE | X69: FALSE | Y69: FALSE | Z69: FALSE | AA69: FALSE | AB69: FALSE | AC69: FALSE | AD69: FALSE | AE69: FALSE | AF69: FALSE | AG69: FALSE
C70: Repayment | F70: =H61 -> 5530429.8 | I70: =$F$70/$G$69*I69 -> 553042.98 | J70: =$F$70/$G$69*J69 -> 553042.98 | K70: 553042.98 | L70: 553042.98 | M70: 553042.98 | N70: 553042.98 | O70: 553042.98 | P70: 553042.98 | Q70: 553042.98 | R70: 553042.98 | S70: 0 | T70: 0 | U70: 0 | V70: 0 | W70: 0 | X70: 0 | Y70: 0 | Z70: 0 | AA70: 0 | AB70: 0 | AC70: 0 | AD70: 0 | AE70: 0 | AF70: 0 | AG70: 0
C72: Opening balance | I72: =H75 -> 5530429.8 | J72: =I75 -> 4977386.82 | K72: 4424343.84 | L72: 3871300.86 | M72: 3318257.88 | N72: 2765214.9 | O72: 2212171.92 | P72: 1659128.94 | Q72: 1106085.96 | R72: 553042.98 | S72: 0 | T72: 0 | U72: 0 | V72: 0 | W72: 0 | X72: 0 | Y72: 0 | Z72: 0 | AA72: 0 | AB72: 0 | AC72: 0 | AD72: 0 | AE72: 0 | AF72: 0 | AG72: 0
C73: Add debt disbursment
C74: Less debt repayment | I74: =I70 -> 553042.98 | J74: =J70 -> 553042.98 | K74: 553042.98 | L74: 553042.98 | M74: 553042.98 | N74: 553042.98 | O74: 553042.98 | P74: 553042.98 | Q74: 553042.98 | R74: 553042.98 | S74: 0 | T74: 0 | U74: 0 | V74: 0 | W74: 0 | X74: 0 | Y74: 0 | Z74: 0 | AA74: 0 | AB74: 0 | AC74: 0 | AD74: 0 | AE74: 0 | AF74: 0 | AG74: 0
C75: Closing balance | H75: =H61 -> 5530429.8 | I75: =I72-I74 -> 4977386.82 | J75: =J72-J74 -> 4424343.84 | K75: 3871300.86 | L75: 3318257.88 | M75: 2765214.9 | N75: 2212171.92 | O75: 1659128.94 | P75: 1106085.96 | Q75: 553042.98 | R75: 0 | S75: 0 | T75: 0 | U75: 0 | V75: 0 | W75: 0 | X75: 0 | Y75: 0 | Z75: 0 | AA75: 0 | AB75: 0 | AC75: 0 | AD75: 0 | AE75: 0 | AF75: 0 | AG75: 0
C76: Interest | F76: =F22 -> 0.13 | I76: =I72*$F$76 -> 718955.874 | J76: 647060.2866 | K76: 575164.6992 | L76: 503269.1118 | M76: 431373.5244 | N76: 359477.937 | O76: 287582.3496 | P76: 215686.7622 | Q76: 143791.1748 | R76: 71895.5874 | S76: 0 | T76: 0 | U76: 0 | V76: 0 | W76: 0 | X76: 0 | Y76: 0 | Z76: 0 | AA76: 0 | AB76: 0 | AC76: 0 | AD76: 0 | AE76: 0 | AF76: 0 | AG76: 0
B78: GCF concessional debt
C79: Repayment switch | F79: =F26 -> 7 | G79: =F27 -> 20 | I79: =AND(I68>=$F$79,I68<=$G$79) -> FALSE | J79: =AND(J68>=$F$79,J68<=$G$79) -> FALSE | K79: FALSE | L79: FALSE | M79: FALSE | N79: FALSE | O79: TRUE | P79: TRUE | Q79: TRUE | R79: TRUE | S79: TRUE | T79: TRUE | U79: TRUE | V79: TRUE | W79: TRUE | X79: TRUE | Y79: TRUE | Z79: TRUE | AA79: TRUE | AB79: TRUE | AC79: FALSE | AD79: FALSE | AE79: FALSE | AF79: FALSE | AG79: FALSE
C80: Repayment | F80: =H62 -> 7373906.4 | G80: =COUNTIF(79:79,TRUE) -> 14 | I80: =$F$80/$G$80*I79 -> 0 | J80: =$F$80/$G$80*J79 -> 0 | K80: 0 | L80: 0 | M80: 0 | N80: 0 | O80: 526707.6 | P80: 526707.6 | Q80: 526707.6 | R80: 526707.6 | S80: 526707.6 | T80: 526707.6 | U80: 526707.6 | V80: 526707.6 | W80: 526707.6 | X80: 526707.6 | Y80: 526707.6 | Z80: 526707.6 | AA80: 526707.6 | AB80: 526707.6 | AC80: 0 | AD80: 0 | AE80: 0 | AF80: 0 | AG80: 0
C82: Opening balance | I82: =H85 -> 7373906.4 | J82: =I85 -> 7373906.4 | K82: 7373906.4 | L82: 7373906.4 | M82: 7373906.4 | N82: 7373906.4 | O82: 7373906.4 | P82: 6847198.8 | Q82: 6320491.2 | R82: 5793783.6 | S82: 5267076 | T82: 4740368.4 | U82: 4213660.8 | V82: 3686953.2 | W82: 3160245.6 | X82: 2633538 | Y82: 2106830.4 | Z82: 1580122.8 | AA82: 1053415.2 | AB82: 526707.6 | AC82: 2.095475793e-09 | AD82: 2.095475793e-09 | AE82: 2.095475793e-09 | AF82: 2.095475793e-09 | AG82: 2.095475793e-09
C83: Add debt disbursment
C84: Less debt repayment | I84: =I80 -> 0 | J84: =J80 -> 0 | K84: 0 | L84: 0 | M84: 0 | N84: 0 | O84: 526707.6 | P84: 526707.6 | Q84: 526707.6 | R84: 526707.6 | S84: 526707.6 | T84: 526707.6 | U84: 526707.6 | V84: 526707.6 | W84: 526707.6 | X84: 526707.6 | Y84: 526707.6 | Z84: 526707.6 | AA84: 526707.6 | AB84: 526707.6 | AC84: 0 | AD84: 0 | AE84: 0 | AF84: 0 | AG84: 0
C85: Closing balance | H85: =H62 -> 7373906.4 | I85: =I82-I84 -> 7373906.4 | J85: =J82-J84 -> 7373906.4 | K85: 7373906.4 | L85: 7373906.4 | M85: 7373906.4 | N85: 7373906.4 | O85: 6847198.8 | P85: 6320491.2 | Q85: 5793783.6 | R85: 5267076 | S85: 4740368.4 | T85: 4213660.8 | U85: 3686953.2 | V85: 3160245.6 | W85: 2633538 | X85: 2106830.4 | Y85: 1580122.8 | Z85: 1053415.2 | AA85: 526707.6 | AB85: 2.095475793e-09 | AC85: 2.095475793e-09 | AD85: 2.095475793e-09 | AE85: 2.095475793e-09 | AF85: 2.095475793e-09 | AG85: 2.095475793e-09
C86: Interest | F86: =F28 -> 0.0075 | I86: =$F$86*I82 -> 55304.298 | J86: =$F$86*J82 -> 55304.298 | K86: 55304.298 | L86: 55304.298 | M86: 55304.298 | N86: 55304.298 | O86: 55304.298 | P86: 51353.991 | Q86: 47403.684 | R86: 43453.377 | S86: 39503.07 | T86: 35552.763 | U86: 31602.456 | V86: 27652.149 | W86: 23701.842 | X86: 19751.535 | Y86: 15801.228 | Z86: 11850.921 | AA86: 7900.614 | AB86: 3950.307 | AC86: 1.571606845e-11 | AD86: 1.571606845e-11 | AE86: 1.571606845e-11 | AF86: 1.571606845e-11 | AG86: 1.571606845e-11
B88: Default
C89: Opening Balance | I89: =H92 -> 0 | J89: =I92 -> 0 | K89: 0 | L89: 0 | M89: 0 | N89: 0 | O89: 0 | P89: 0 | Q89: 0 | R89: 0 | S89: 0 | T89: 0 | U89: 0 | V89: 0 | W89: 0 | X89: 0 | Y89: 0 | Z89: 0 | AA89: 0 | AB89: 0 | AC89: 0 | AD89: 0 | AE89: 0 | AF89: 0 | AG89: 0
C90: Add: Default | I90: =I108 -> 0 | J90: =J108 -> 0 | K90: 0 | L90: 0 | M90: 0 | N90: 0 | O90: 0 | P90: 0 | Q90: 0 | R90: 0 | S90: 0 | T90: 0 | U90: 0 | V90: 0 | W90: 0 | X90: 0 | Y90: 0 | Z90: 0 | AA90: 0 | AB90: 0 | AC90: 0 | AD90: 0 | AE90: 0 | AF90: 0 | AG90: 0
C91: Less: Repayment of Default | I91: =I109 -> 0 | J91: =J109 -> 0 | K91: 0 | L91: 0 | M91: 0 | N91: 0 | O91: 0 | P91: 0 | Q91: 0 | R91: 0 | S91: 0 | T91: 0 | U91: 0 | V91: 0 | W91: 0 | X91: 0 | Y91: 0 | Z91: 0 | AA91: 0 | AB91: 0 | AC91: 0 | AD91: 0 | AE91: 0 | AF91: 0 | AG91: 0
C92: Closing Balance | I92: =I89+I90-I91 -> 0 | J92: =J89+J90-J91 -> 0 | K92: 0 | L92: 0 | M92: 0 | N92: 0 | O92: 0 | P92: 0 | Q92: 0 | R92: 0 | S92: 0 | T92: 0 | U92: 0 | V92: 0 | W92: 0 | X92: 0 | Y92: 0 | Z92: 0 | AA92: 0 | AB92: 0 | AC92: 0 | AD92: 0 | AE92: 0 | AF92: 0 | AG92: 0
C94: Conventional Percent | F94: =F76 -> 0.13 | I94: =IF(I72,I72/(I72+I82)) -> 0.4285714286 | J94: =IF(J72,J72/(J72+J82)) -> 0.4029850746 | K94: 0.375 | L94: 0.3442622951 | M94: 0.3103448276 | N94: 0.2727272727 | O94: 0.2307692308 | P94: 0.1950464396 | Q94: 0.1489361702 | R94: 0.08713692946 | S94: FALSE | T94: FALSE | U94: FALSE | V94: FALSE | W94: FALSE | X94: FALSE | Y94: FALSE | Z94: FALSE | AA94: FALSE | AB94: FALSE | AC94: FALSE | AD94: FALSE | AE94: FALSE | AF94: FALSE | AG94: FALSE
C95: GCF Percent | F95: =F86 -> 0.0075 | I95: =1-I94 -> 0.5714285714 | J95: =1-J94 -> 0.5970149254 | K95: 0.625 | L95: 0.6557377049 | M95: 0.6896551724 | N95: 0.7272727273 | O95: 0.7692307692 | P95: 0.8049535604 | Q95: 0.8510638298 | R95: 0.9128630705 | S95: 1 | T95: 1 | U95: 1 | V95: 1 | W95: 1 | X95: 1 | Y95: 1 | Z95: 1 | AA95: 1 | AB95: 1 | AC95: 1 | AD95: 1 | AE95: 1 | AF95: 1 | AG95: 1
C96: Weighted Interest Rate | I96: =I94*$F$94+I95*$F$95 -> 0.06 | J96: =J94*$F$94+J95*$F$95 -> 0.05686567164 | K96: 0.0534375 | L96: 0.04967213115 | M96: 0.04551724138 | N96: 0.04090909091 | O96: 0.03576923077 | P96: 0.03139318885 | Q96: 0.02574468085 | R96: 0.01817427386 | S96: 0.0075 | T96: 0.0075 | U96: 0.0075 | V96: 0.0075 | W96: 0.0075 | X96: 0.0075 | Y96: 0.0075 | Z96: 0.0075 | AA96: 0.0075 | AB96: 0.0075 | AC96: 0.0075 | AD96: 0.0075 | AE96: 0.0075 | AF96: 0.0075 | AG96: 0.0075
C97: Default Interest | I97: =I96*I89 -> 0 | J97: =J96*J89 -> 0 | K97: 0 | L97: 0 | M97: 0 | N97: 0 | O97: 0 | P97: 0 | Q97: 0 | R97: 0 | S97: 0 | T97: 0 | U97: 0 | V97: 0 | W97: 0 | X97: 0 | Y97: 0 | Z97: 0 | AA97: 0 | AB97: 0 | AC97: 0 | AD97: 0 | AE97: 0 | AF97: 0 | AG97: 0
A99: Cashflow waterfall
B100: EBITDA | I100: =I52 -> 1924288 | J100: =J52 -> 1924288 | K100: 1924288 | L100: 1908288 | M100: 1908288 | N100: 1908288 | O100: 1892288 | P100: 1892288 | Q100: 1892288 | R100: 1892288 | S100: 1583936 | T100: 1567936 | U100: 1567936 | V100: 1567936 | W100: 1567936 | X100: 1567936 | Y100: 1567936 | Z100: 1567936 | AA100: 1567936 | AB100: 1567936 | AC100: 1567936 | AD100: 1567936 | AE100: 1567936 | AF100: 1567936 | AG100: 1567936
B101: Less Interest on conventional debt | I101: =I76 -> 718955.874 | J101: =J76 -> 647060.2866 | K101: 575164.6992 | L101: 503269.1118 | M101: 431373.5244 | N101: 359477.937 | O101: 287582.3496 | P101: 215686.7622 | Q101: 143791.1748 | R101: 71895.5874 | S101: 0 | T101: 0 | U101: 0 | V101: 0 | W101: 0 | X101: 0 | Y101: 0 | Z101: 0 | AA101: 0 | AB101: 0 | AC101: 0 | AD101: 0 | AE101: 0 | AF101: 0 | AG101: 0
B102: Less repayment on conventional debt | I102: =I74 -> 553042.98 | J102: =J74 -> 553042.98 | K102: 553042.98 | L102: 553042.98 | M102: 553042.98 | N102: 553042.98 | O102: 553042.98 | P102: 553042.98 | Q102: 553042.98 | R102: 553042.98 | S102: 0 | T102: 0 | U102: 0 | V102: 0 | W102: 0 | X102: 0 | Y102: 0 | Z102: 0 | AA102: 0 | AB102: 0 | AC102: 0 | AD102: 0 | AE102: 0 | AF102: 0 | AG102: 0
B103: Less: Default Interest | I103: =I97 -> 0 | J103: =J97 -> 0 | K103: 0 | L103: 0 | M103: 0 | N103: 0 | O103: 0 | P103: 0 | Q103: 0 | R103: 0 | S103: 0 | T103: 0 | U103: 0 | V103: 0 | W103: 0 | X103: 0 | Y103: 0 | Z103: 0 | AA103: 0 | AB103: 0 | AC103: 0 | AD103: 0 | AE103: 0 | AF103: 0 | AG103: 0
C104: Net cashflow | I104: =I100-I101-I102-I103 -> 652289.146 | J104: =J100-J101-J102-J103 -> 724184.7334 | K104: 796080.3208 | L104: 851975.9082 | M104: 923871.4956 | N104: 995767.083 | O104: 1051662.67 | P104: 1123558.258 | Q104: 1195453.845 | R104: 1267349.433 | S104: 1583936 | T104: 1567936 | U104: 1567936 | V104: 1567936 | W104: 1567936 | X104: 1567936 | Y104: 1567936 | Z104: 1567936 | AA104: 1567936 | AB104: 1567936 | AC104: 1567936 | AD104: 1567936 | AE104: 1567936 | AF104: 1567936 | AG104: 1567936
B105: Less Interest on GCF concessional debt | I105: =I86 -> 55304.298 | J105: =J86 -> 55304.298 | K105: 55304.298 | L105: 55304.298 | M105: 55304.298 | N105: 55304.298 | O105: 55304.298 | P105: 51353.991 | Q105: 47403.684 | R105: 43453.377 | S105: 39503.07 | T105: 35552.763 | U105: 31602.456 | V105: 27652.149 | W105: 23701.842 | X105: 19751.535 | Y105: 15801.228 | Z105: 11850.921 | AA105: 7900.614 | AB105: 3950.307 | AC105: 1.571606845e-11 | AD105: 1.571606845e-11 | AE105: 1.571606845e-11 | AF105: 1.571606845e-11 | AG105: 1.571606845e-11
B106: Less repayment on GCF concessional debt | I106: =I84 -> 0 | J106: =J84 -> 0 | K106: 0 | L106: 0 | M106: 0 | N106: 0 | O106: 526707.6 | P106: 526707.6 | Q106: 526707.6 | R106: 526707.6 | S106: 526707.6 | T106: 526707.6 | U106: 526707.6 | V106: 526707.6 | W106: 526707.6 | X106: 526707.6 | Y106: 526707.6 | Z106: 526707.6 | AA106: 526707.6 | AB106: 526707.6 | AC106: 0 | AD106: 0 | AE106: 0 | AF106: 0 | AG106: 0
C107: Net cashflow | I107: =I104-I105-I106 -> 596984.848 | J107: =J104-J105-J106 -> 668880.4354 | K107: 740776.0228 | L107: 796671.6102 | M107: 868567.1976 | N107: 940462.785 | O107: 469650.7724 | P107: 545496.6668 | Q107: 621342.5612 | R107: 697188.4556 | S107: 1017725.33 | T107: 1005675.637 | U107: 1009625.944 | V107: 1013576.251 | W107: 1017526.558 | X107: 1021476.865 | Y107: 1025427.172 | Z107: 1029377.479 | AA107: 1033327.786 | AB107: 1037278.093 | AC107: 1567936 | AD107: 1567936 | AE107: 1567936 | AF107: 1567936 | AG107: 1567936
B108: Add: Default | I108: =MAX(-I107,0) -> 0 | J108: =MAX(-J107,0) -> 0 | K108: 0 | L108: 0 | M108: 0 | N108: 0 | O108: 0 | P108: 0 | Q108: 0 | R108: 0 | S108: 0 | T108: 0 | U108: 0 | V108: 0 | W108: 0 | X108: 0 | Y108: 0 | Z108: 0 | AA108: 0 | AB108: 0 | AC108: 0 | AD108: 0 | AE108: 0 | AF108: 0 | AG108: 0
B109: Less: Repayment of Default | I109: =MIN(I89,MAX(I107,0)) -> 0 | J109: =MIN(J89,MAX(J107,0)) -> 0 | K109: 0 | L109: 0 | M109: 0 | N109: 0 | O109: 0 | P109: 0 | Q109: 0 | R109: 0 | S109: 0 | T109: 0 | U109: 0 | V109: 0 | W109: 0 | X109: 0 | Y109: 0 | Z109: 0 | AA109: 0 | AB109: 0 | AC109: 0 | AD109: 0 | AE109: 0 | AF109: 0 | AG109: 0
C110: Cash After Default | I110: =I107+I108-I109 -> 596984.848 | J110: =J107+J108-J109 -> 668880.4354 | K110: 740776.0228 | L110: 796671.6102 | M110: 868567.1976 | N110: 940462.785 | O110: 469650.7724 | P110: 545496.6668 | Q110: 621342.5612 | R110: 697188.4556 | S110: 1017725.33 | T110: 1005675.637 | U110: 1009625.944 | V110: 1013576.251 | W110: 1017526.558 | X110: 1021476.865 | Y110: 1025427.172 | Z110: 1029377.479 | AA110: 1033327.786 | AB110: 1037278.093 | AC110: 1567936 | AD110: 1567936 | AE110: 1567936 | AF110: 1567936 | AG110: 1567936
C111: Dividends | I111: =I110 -> 596984.848 | J111: =J110 -> 668880.4354 | K111: 740776.0228 | L111: 796671.6102 | M111: 868567.1976 | N111: 940462.785 | O111: 469650.7724 | P111: 545496.6668 | Q111: 621342.5612 | R111: 697188.4556 | S111: 1017725.33 | T111: 1005675.637 | U111: 1009625.944 | V111: 1013576.251 | W111: 1017526.558 | X111: 1021476.865 | Y111: 1025427.172 | Z111: 1029377.479 | AA111: 1033327.786 | AB111: 1037278.093 | AC111: 1567936 | AD111: 1567936 | AE111: 1567936 | AF111: 1567936 | AG111: 1567936
A114: Financial ratios
B115: Equity cashflow | H115: =-H64 -> -5530429.8 | I115: =I111 -> 596984.848 | J115: =J111 -> 668880.4354 | K115: 740776.0228 | L115: 796671.6102 | M115: 868567.1976 | N115: 940462.785 | O115: 469650.7724 | P115: 545496.6668 | Q115: 621342.5612 | R115: 697188.4556 | S115: 1017725.33 | T115: 1005675.637 | U115: 1009625.944 | V115: 1013576.251 | W115: 1017526.558 | X115: 1021476.865 | Y115: 1025427.172 | Z115: 1029377.479 | AA115: 1033327.786 | AB115: 1037278.093 | AC115: 1567936 | AD115: 1567936 | AE115: 1567936 | AF115: 1567936 | AG115: 1567936
B116: Equity IRR | E116: =IRR(115:115) -> 0.138553532
B119: CFADS | I119: =I100 -> 1924288 | J119: =J100 -> 1924288 | K119: 1924288 | L119: 1908288 | M119: 1908288 | N119: 1908288 | O119: 1892288 | P119: 1892288 | Q119: 1892288 | R119: 1892288 | S119: 1583936 | T119: 1567936 | U119: 1567936 | V119: 1567936 | W119: 1567936 | X119: 1567936 | Y119: 1567936 | Z119: 1567936 | AA119: 1567936 | AB119: 1567936 | AC119: 1567936 | AD119: 1567936 | AE119: 1567936 | AF119: 1567936 | AG119: 1567936
B120: Debt service | I120: =I101+I102+I105+I106 -> 1327303.152 | J120: =J101+J102+J105+J106 -> 1255407.565 | K120: 1183511.977 | L120: 1111616.39 | M120: 1039720.802 | N120: 967825.215 | O120: 1422637.228 | P120: 1346791.333 | Q120: 1270945.439 | R120: 1195099.544 | S120: 566210.67 | T120: 562260.363 | U120: 558310.056 | V120: 554359.749 | W120: 550409.442 | X120: 546459.135 | Y120: 542508.828 | Z120: 538558.521 | AA120: 534608.214 | AB120: 530657.907 | AC120: 1.571606845e-11 | AD120: 1.571606845e-11 | AE120: 1.571606845e-11 | AF120: 1.571606845e-11 | AG120: 1.571606845e-11
C121: DSCR (Min) | E121: =MIN(I121:AG121) -> 1.330126868 | I121: =IF(I120>0.1,I119/I120) -> 1.449772795 | J121: =IF(J120>0.1,J119/J120) -> 1.53279943 | K121: 1.625913415 | L121: 1.716678539 | M121: 1.835385034 | N121: 1.971727922 | O121: 1.330126868 | P121: 1.405034287 | Q121: 1.488882168 | R121: 1.583372706 | S121: 2.79743227 | T121: 2.788629794 | U121: 2.808360665 | V121: 2.828372736 | W121: 2.848672062 | X121: 2.869264872 | Y121: 2.890157577 | Z121: 2.911356777 | AA121: 2.932869266 | AB121: 2.954702039 | AC121: FALSE | AD121: FALSE | AE121: FALSE | AF121: FALSE | AG121: FALSE
B123: Debt Cash Flow | H123: =-H61-H62 -> -12904336.2 | I123: =I120 -> 1327303.152 | J123: =J120 -> 1255407.565 | K123: 1183511.977 | L123: 1111616.39 | M123: 1039720.802 | N123: 967825.215 | O123: 1422637.228 | P123: 1346791.333 | Q123: 1270945.439 | R123: 1195099.544 | S123: 566210.67 | T123: 562260.363 | U123: 558310.056 | V123: 554359.749 | W123: 550409.442 | X123: 546459.135 | Y123: 542508.828 | Z123: 538558.521 | AA123: 534608.214 | AB123: 530657.907 | AC123: 1.571606845e-11 | AD123: 1.571606845e-11 | AE123: 1.571606845e-11 | AF123: 1.571606845e-11 | AG123: 1.571606845e-11
B124: Debt IRR | E124: =IRR(123:123) -> 0.03927037033
B126: PLCR
C127: NPV of Cash Flow | E127: =NPV(E124,119:119) -> 27463798.52
C128: NPV of Debt Service | E128: =NPV(E124,120:120) -> 12904336.2
C129: Ratio | E129: =E127/E128 -> 2.128261236
B131: LLCR (loan life coverage ratio) for Conventional | I131: 1 | J131: 2 | K131: 3 | L131: 4 | M131: 5 | N131: 6 | O131: 7 | P131: 8 | Q131: 9 | R131: 10 | S131: 11 | T131: 12 | U131: 13 | V131: 14 | W131: 15 | X131: 16 | Y131: 17 | Z131: 18 | AA131: 19 | AB131: 20 | AC131: 21 | AD131: 22 | AE131: 23 | AF131: 24 | AG131: 25
C132: Debt Life Conventional | G132: =F21 -> 10 | I132: =I131<=$G$132 -> TRUE | J132: =J131<=$G$132 -> TRUE | K132: TRUE | L132: TRUE | M132: TRUE | N132: TRUE | O132: TRUE | P132: TRUE | Q132: TRUE | R132: TRUE | S132: FALSE | T132: FALSE | U132: FALSE | V132: FALSE | W132: FALSE | X132: FALSE | Y132: FALSE | Z132: FALSE | AA132: FALSE | AB132: FALSE | AC132: FALSE | AD132: FALSE | AE132: FALSE | AF132: FALSE | AG132: FALSE
C133: CFADS over Debt Life | I133: =I132*I119 -> 1924288 | J133: =J132*J119 -> 1924288 | K133: 1924288 | L133: 1908288 | M133: 1908288 | N133: 1908288 | O133: 1892288 | P133: 1892288 | Q133: 1892288 | R133: 1892288 | S133: 0 | T133: 0 | U133: 0 | V133: 0 | W133: 0 | X133: 0 | Y133: 0 | Z133: 0 | AA133: 0 | AB133: 0 | AC133: 0 | AD133: 0 | AE133: 0 | AF133: 0 | AG133: 0
C134: Debt Service | H134: =H123 -> -12904336.2 | I134: =I132*I120 -> 1327303.152 | J134: =J132*J120 -> 1255407.565 | K134: 1183511.977 | L134: 1111616.39 | M134: 1039720.802 | N134: 967825.215 | O134: 1422637.228 | P134: 1346791.333 | Q134: 1270945.439 | R134: 1195099.544 | S134: 0 | T134: 0 | U134: 0 | V134: 0 | W134: 0 | X134: 0 | Y134: 0 | Z134: 0 | AA134: 0 | AB134: 0 | AC134: 0 | AD134: 0 | AE134: 0 | AF134: 0 | AG134: 0
C135: Debt IRR for Conventional Debt | E135: =IRR(H134:AG134) -> -0.01117656814
C136: PV of CFADS | E136: =NPV(E135,I133:AG133) -> 20289006.69
C137: PV of Debt Service | E137: =-H134 -> 12904336.2
D138: Ratio | E138: =E136/E137 -> 1.572262717
B140: LLCR for GCF Concessional
C141: Maximum Debt Life | G141: =G79 -> 20 | I141: =I131<=$G$141 -> TRUE | J141: =J131<=$G$141 -> TRUE | K141: TRUE | L141: TRUE | M141: TRUE | N141: TRUE | O141: TRUE | P141: TRUE | Q141: TRUE | R141: TRUE | S141: TRUE | T141: TRUE | U141: TRUE | V141: TRUE | W141: TRUE | X141: TRUE | Y141: TRUE | Z141: TRUE | AA141: TRUE | AB141: TRUE | AC141: FALSE | AD141: FALSE | AE141: FALSE | AF141: FALSE | AG141: FALSE
C142: CFADS over Debt Life | I142: =I141*I119 -> 1924288 | J142: =J141*J119 -> 1924288 | K142: 1924288 | L142: 1908288 | M142: 1908288 | N142: 1908288 | O142: 1892288 | P142: 1892288 | Q142: 1892288 | R142: 1892288 | S142: 1583936 | T142: 1567936 | U142: 1567936 | V142: 1567936 | W142: 1567936 | X142: 1567936 | Y142: 1567936 | Z142: 1567936 | AA142: 1567936 | AB142: 1567936 | AC142: 0 | AD142: 0 | AE142: 0 | AF142: 0 | AG142: 0
C143: Debt Service | H143: =H134 -> -12904336.2 | I143: =I141*I120 -> 1327303.152 | J143: =J141*J120 -> 1255407.565 | K143: 1183511.977 | L143: 1111616.39 | M143: 1039720.802 | N143: 967825.215 | O143: 1422637.228 | P143: 1346791.333 | Q143: 1270945.439 | R143: 1195099.544 | S143: 566210.67 | T143: 562260.363 | U143: 558310.056 | V143: 554359.749 | W143: 550409.442 | X143: 546459.135 | Y143: 542508.828 | Z143: 538558.521 | AA143: 534608.214 | AB143: 530657.907 | AC143: 0 | AD143: 0 | AE143: 0 | AF143: 0 | AG143: 0
C144: Debt IRR | E144: =IRR(143:143) -> 0.03927037033
C145: PV of CFADS | E145: =NPV(E144,I142:AG142) -> 24226476.18
C146: PV of Debt Service | E146: =-H143 -> 12904336.2
D147: Ratio | E147: =E145/E146 -> 1.877390344
B149: LCOE (USD cents/MGWh) | G149: 0.05 | H149: =NPV(G149,47:47)/NPV(G149,42:42) -> 120.9575214
A151: Graphs | I151: =I2 -> 2019 | J151: 2020 | K151: 2021 | L151: 2022 | M151: 2023 | N151: 2024 | O151: 2025 | P151: 2026 | Q151: 2027 | R151: 2028 | S151: 2029 | T151: 2030 | U151: 2031 | V151: 2032 | W151: 2033 | X151: 2034 | Y151: 2035 | Z151: 2036 | AA151: 2037 | AB151: 2038 | AC151: 2039 | AD151: 2040 | AE151: 2041 | AF151: 2042 | AG151: 2043
B152: EBITDA | I152: =I100 -> 1924288 | J152: 1924288 | K152: 1924288 | L152: 1908288 | M152: 1908288 | N152: 1908288 | O152: 1892288 | P152: 1892288 | Q152: 1892288 | R152: 1892288 | S152: 1583936 | T152: 1567936 | U152: 1567936 | V152: 1567936 | W152: 1567936 | X152: 1567936 | Y152: 1567936 | Z152: 1567936 | AA152: 1567936 | AB152: 1567936 | AC152: 1567936 | AD152: 1567936 | AE152: 1567936 | AF152: 1567936 | AG152: 1567936
B153: Conventional debt service | I153: =I101+I102 -> 1271998.854 | J153: 1200103.267 | K153: 1128207.679 | L153: 1056312.092 | M153: 984416.5044 | N153: 912520.917 | O153: 840625.3296 | P153: 768729.7422 | Q153: 696834.1548 | R153: 624938.5674 | S153: 0 | T153: 0 | U153: 0 | V153: 0 | W153: 0 | X153: 0 | Y153: 0 | Z153: 0 | AA153: 0 | AB153: 0 | AC153: 0 | AD153: 0 | AE153: 0 | AF153: 0 | AG153: 0
B154: GCF concessional debt service | I154: =I106+I105 -> 55304.298 | J154: 55304.298 | K154: 55304.298 | L154: 55304.298 | M154: 55304.298 | N154: 55304.298 | O154: 582011.898 | P154: 578061.591 | Q154: 574111.284 | R154: 570160.977 | S154: 566210.67 | T154: 562260.363 | U154: 558310.056 | V154: 554359.749 | W154: 550409.442 | X154: 546459.135 | Y154: 542508.828 | Z154: 538558.521 | AA154: 534608.214 | AB154: 530657.907 | AC154: 1.571606845e-11 | AD154: 1.571606845e-11 | AE154: 1.571606845e-11 | AF154: 1.571606845e-11 | AG154: 1.571606845e-11
B155: DSCR | F155: =MIN(I155:AG155) -> 1.330126868 | I155: =IF(I153>0.1,I152/(I153+I154)) -> 1.449772795 | J155: =IF(J153>0.1,J152/(J153+J154)) -> 1.53279943 | K155: 1.625913415 | L155: 1.716678539 | M155: 1.835385034 | N155: 1.971727922 | O155: 1.330126868 | P155: 1.405034287 | Q155: 1.488882168 | R155: 1.583372706 | S155: FALSE | T155: FALSE | U155: FALSE | V155: FALSE | W155: FALSE | X155: FALSE | Y155: FALSE | Z155: FALSE | AA155: FALSE | AB155: FALSE | AC155: FALSE | AD155: FALSE | AE155: FALSE | AF155: FALSE | AG155: FALSE
B157: Equity IRR | G157: =IRR(115:115) -> 0.138553532 | H157: Grant % | I157: =G63 -> 0 | J157: Concessional debt | K157: =F25 -> 0.4 | L157: DSCR | M157: =F155 -> 1.330126868 | N157: LCOE | O157: =H149 -> 120.9575214
H159: =IF(F25,G141,G132) -> 20 | I159: =I131 -> 1 | J159: =J131 -> 2 | K159: 3 | L159: 4 | M159: 5 | N159: 6 | O159: 7 | P159: 8 | Q159: 9 | R159: 10 | S159: 11 | T159: 12 | U159: 13 | V159: 14 | W159: 15 | X159: 16 | Y159: 17 | Z159: 18 | AA159: 19 | AB159: 20 | AC159: 21 | AD159: 22 | AE159: 23 | AF159: 24 | AG159: 25
I160: =IF(I159<=$H$159,I151,NA()) -> 2019 | J160: =IF(J159<=$H$159,J151,NA()) -> 2020 | K160: 2021 | L160: 2022 | M160: 2023 | N160: 2024 | O160: 2025 | P160: 2026 | Q160: 2027 | R160: 2028 | S160: 2029 | T160: 2030 | U160: 2031 | V160: 2032 | W160: 2033 | X160: 2034 | Y160: 2035 | Z160: 2036 | AA160: 2037 | AB160: 2038
B161: Conventional Debt | I161: =I75 -> 4977386.82 | J161: =J75 -> 4424343.84 | K161: 3871300.86 | L161: 3318257.88 | M161: 2765214.9 | N161: 2212171.92 | O161: 1659128.94 | P161: 1106085.96 | Q161: 553042.98 | R161: 0 | S161: 0 | T161: 0 | U161: 0 | V161: 0 | W161: 0 | X161: 0 | Y161: 0 | Z161: 0 | AA161: 0 | AB161: 0 | AC161: 0 | AD161: 0 | AE161: 0 | AF161: 0 | AG161: 0
B162: GCF Concesssional Debt | I162: =I85 -> 7373906.4 | J162: =J85 -> 7373906.4 | K162: 7373906.4 | L162: 7373906.4 | M162: 7373906.4 | N162: 7373906.4 | O162: 6847198.8 | P162: 6320491.2 | Q162: 5793783.6 | R162: 5267076 | S162: 4740368.4 | T162: 4213660.8 | U162: 3686953.2 | V162: 3160245.6 | W162: 2633538 | X162: 2106830.4 | Y162: 1580122.8 | Z162: 1053415.2 | AA162: 526707.6 | AB162: 2.095475793e-09 | AC162: 2.095475793e-09 | AD162: 2.095475793e-09 | AE162: 2.095475793e-09 | AF162: 2.095475793e-09 | AG162: 2.095475793e-09
B163: Default | I163: =I92 -> 0 | J163: =J92 -> 0 | K163: 0 | L163: 0 | M163: 0 | N163: 0 | O163: 0 | P163: 0 | Q163: 0 | R163: 0 | S163: 0 | T163: 0 | U163: 0 | V163: 0 | W163: 0 | X163: 0 | Y163: 0 | Z163: 0 | AA163: 0 | AB163: 0 | AC163: 0 | AD163: 0 | AE163: 0 | AF163: 0 | AG163: 0

Sheet Scenarios
C3: Scenario number | E3: 1
D6: Capacity factor | E6: Capex | F6: PPA price 2 | G6: O&M
C7: Company case | D7: 0.176 | E7: 18434766 | F7: 110 | G7: 0.8
C8: Base case | D8: =D7 -> 0.176 | E8: =E7*1.05 -> 19356504.3 | F8: 90 | G8: 0.9
C9: Downside case | D9: 0.16 | E9: =E7*1.1 -> 20278242.6 | F9: 50 | G9: 1.2
C10: Worst case | D10: 0.15 | E10: =E7*1.2 -> 22121719.2 | F10: 30 | G10: 1.3
C12: =INDEX(C7:C10,$E$3) -> Company case | D12: =INDEX(D7:D10,$E$3) -> 0.176 | E12: =INDEX(E7:E10,$E$3) -> 18434766 | F12: =INDEX(F7:F10,$E$3) -> 110 | G12: =INDEX(G7:G10,$E$3) -> 0.8

Sheet Implied PD
A3: Risk Free Loan
E4: 1 | F4: 2 | G4: 3 | H4: 4 | I4: 5 | J4: 6 | K4: 7 | L4: 8 | M4: 9 | N4: 10 | O4: 11 | P4: 12 | Q4: 13 | R4: 14 | S4: 15 | T4: 16 | U4: 17 | V4: 18 | W4: 19 | X4: 20
C5: risk free (20 year German) | D5: 0.0255
C6: Loan Amount | D6: 1000
C7: total repayment | D7: =PMT(D5,X4,-D6) -> 64.45049089 | E7: =D7 -> 64.45049089 | F7: =E7 -> 64.45049089 | G7: 64.45049089 | H7: 64.45049089 | I7: 64.45049089 | J7: 64.45049089 | K7: 64.45049089 | L7: 64.45049089 | M7: 64.45049089 | N7: 64.45049089 | O7: 64.45049089 | P7: 64.45049089 | Q7: 64.45049089 | R7: 64.45049089 | S7: 64.45049089 | T7: 64.45049089 | U7: 64.45049089 | V7: 64.45049089 | W7: 64.45049089 | X7: 64.45049089
C8: total cashflow | D8: =-D6 -> -1000 | E8: =E7 -> 64.45049089 | F8: =F7 -> 64.45049089 | G8: 64.45049089 | H8: 64.45049089 | I8: 64.45049089 | J8: 64.45049089 | K8: 64.45049089 | L8: 64.45049089 | M8: 64.45049089 | N8: 64.45049089 | O8: 64.45049089 | P8: 64.45049089 | Q8: 64.45049089 | R8: 64.45049089 | S8: 64.45049089 | T8: 64.45049089 | U8: 64.45049089 | V8: 64.45049089 | W8: 64.45049089 | X8: 64.45049089
C9: IRR | D9: =IRR(8:8) -> 0.0255
B11: Risk Free Loan Balance
C12: Opening Balance | E12: =D14 -> 1000 | F12: =E14 -> 961.0495091 | G12: 921.1057807 | H12: 880.1434872 | I12: 838.1366552 | J12: 795.0586491 | K12: 750.8821537 | L12: 705.5791577 | M12: 659.1209354 | N12: 611.4780283 | O12: 562.6202272 | P12: 512.5165521 | Q12: 461.1352332 | R12: 408.4436908 | S12: 354.408514 | T12: 298.9954402 | U12: 242.1693331 | V12: 183.8941602 | W12: 124.1329704 | X12: 62.8478702
C13: Loan Repayment | E13: =E7-E15 -> 38.95049089 | F13: 39.94372841 | G13: 40.96229349 | H13: 42.00683197 | I13: 43.07800618 | J13: 44.17649534 | K13: 45.30299597 | L13: 46.45822237 | M13: 47.64290704 | N13: 48.85780117 | O13: 50.1036751 | P13: 51.38131882 | Q13: 52.69154245 | R13: 54.03517678 | S13: 55.41307379 | T13: 56.82610717 | U13: 58.2751729 | V13: 59.76118981 | W13: 61.28510015 | X13: 62.8478702
C14: Closing Balance | D14: =D6 -> 1000 | E14: =E12-E13 -> 961.0495091 | F14: =F12-F13 -> 921.1057807 | G14: 880.1434872 | H14: 838.1366552 | I14: 795.0586491 | J14: 750.8821537 | K14: 705.5791577 | L14: 659.1209354 | M14: 611.4780283 | N14: 562.6202272 | O14: 512.5165521 | P14: 461.1352332 | Q14: 408.4436908 | R14: 354.408514 | S14: 298.9954402 | T14: 242.1693331 | U14: 183.8941602 | V14: 124.1329704 | W14: 62.8478702 | X14: -1.350031198e-13
C15: Interest | E15: =E12*$D$5 -> 25.5 | F15: =F12*$D$5 -> 24.50676248 | G15: 23.48819741 | H15: 22.44365892 | I15: 21.37248471 | J15: 20.27399555 | K15: 19.14749492 | L15: 17.99226852 | M15: 16.80758385 | N15: 15.59268972 | O15: 14.34681579 | P15: 13.06917208 | Q15: 11.75894845 | R15: 10.41531412 | S15: 9.037417107 | T15: 7.624383726 | U15: 6.175317993 | V15: 4.689301084 | W15: 3.165390744 | X15: 1.60262069
C16: fees
A18: Risky Loan
C19: Loan Amount | D19: =D6 -> 1000
C20: Risk Free Rate | D20: =D5 -> 0.0255
C21: Credit Spread | D21: 0.06
C22: Total Interest Rate | D22: =SUM(D20:D21) -> 0.0855
C24: total repayment | D24: =PMT(D22,20,-D19) -> 106.0560046
C25: probability of default (PD) | D25: 0.6401429097
C26: loss given default (LGD) | D26: 0.7
C27: time of default (year #) | D27: 3
C28: recovery rate | D28: =1-D26 -> 0.3
C30: default switch | E30: =E4>=$D$27 -> FALSE | F30: =F4>=$D$27 -> FALSE | G30: TRUE | H30: TRUE | I30: TRUE | J30: TRUE | K30: TRUE | L30: TRUE | M30: TRUE | N30: TRUE | O30: TRUE | P30: TRUE | Q30: TRUE | R30: TRUE | S30: TRUE | T30: TRUE | U30: TRUE | V30: TRUE | W30: TRUE | X30: TRUE
C31: scenario 1: no default | D31: =1-D25 -> 0.3598570903 | E31: =$D$31*$D$24 -> 38.16500523 | F31: =$D$31*$D$24 -> 38.16500523 | G31: 38.16500523 | H31: 38.16500523 | I31: 38.16500523 | J31: 38.16500523 | K31: 38.16500523 | L31: 38.16500523 | M31: 38.16500523 | N31: 38.16500523 | O31: 38.16500523 | P31: 38.16500523 | Q31: 38.16500523 | R31: 38.16500523 | S31: 38.16500523 | T31: 38.16500523 | U31: 38.16500523 | V31: 38.16500523 | W31: 38.16500523 | X31: 38.16500523
C32: scenario 2: default | D32: =D25 -> 0.6401429097 | E32: =IF(E30,$D$32*$D$24*$D$28,$D$24*$D$25) -> 67.89099938 | F32: =IF(F30,$D$32*$D$24*$D$28,$D$24*$D$25) -> 67.89099938 | G32: 20.36729981 | H32: 20.36729981 | I32: 20.36729981 | J32: 20.36729981 | K32: 20.36729981 | L32: 20.36729981 | M32: 20.36729981 | N32: 20.36729981 | O32: 20.36729981 | P32: 20.36729981 | Q32: 20.36729981 | R32: 20.36729981 | S32: 20.36729981 | T32: 20.36729981 | U32: 20.36729981 | V32: 20.36729981 | W32: 20.36729981 | X32: 20.36729981
C33: average | E33: =SUM(E31:E32) -> 106.0560046 | F33: =SUM(F31:F32) -> 106.0560046 | G33: 58.53230504 | H33: 58.53230504 | I33: 58.53230504 | J33: 58.53230504 | K33: 58.53230504 | L33: 58.53230504 | M33: 58.53230504 | N33: 58.53230504 | O33: 58.53230504 | P33: 58.53230504 | Q33: 58.53230504 | R33: 58.53230504 | S33: 58.53230504 | T33: 58.53230504 | U33: 58.53230504 | V33: 58.53230504 | W33: 58.53230504 | X33: 58.53230504
C34: cashflow | D34: =-D19 -> -1000 | E34: =E33 -> 106.0560046 | F34: =F33 -> 106.0560046 | G34: 58.53230504 | H34: 58.53230504 | I34: 58.53230504 | J34: 58.53230504 | K34: 58.53230504 | L34: 58.53230504 | M34: 58.53230504 | N34: 58.53230504 | O34: 58.53230504 | P34: 58.53230504 | Q34: 58.53230504 | R34: 58.53230504 | S34: 58.53230504 | T34: 58.53230504 | U34: 58.53230504 | V34: 58.53230504 | W34: 58.53230504 | X34: 58.53230504
C35: IRR | D35: =IRR(34:34) -> 0.02546622688
C36: IRR vs risk free rate | D36: =D35-D20 -> -3.377312023e-05

Sheet DSCR
C2: 2018 | D2: 2019 | E2: 2020 | F2: 2021 | G2: 2022 | H2: 2023 | I2: 2024 | J2: 2025 | K2: 2026 | L2: 2027
B3: Base Case | C3: 2.37 | D3: 1.62 | E3: 1.67 | F3: 1.72 | G3: 1.78 | H3: 1.84 | I3: 1.9 | J3: 1.98 | K3: 2.06 | L3: 2.15
B4: Low Case | C4: 1.76 | D4: 1.2 | E4: 1.22 | F4: 1.24 | G4: 1.27 | H4: 1.3 | I4: 1.33 | J4: 1.37 | K4: 1.4 | L4: 1.45
B5: High Case | C5: 2.64 | D5: 1.82 | E5: 1.88 | F5: 1.94 | G5: 2.01 | H5: 2.09 | I5: 2.18 | J5: 2.27 | K5: 2.38 | L5: 2.49

Sheet IRR and Default
B2: Loan
C3: Risk-free Loan Interest rate | F3: 0.02
C4: Loan Amount | F4: 1000
C5: Total Repayment | E5: =-F4 -> -1000 | F5: =PMT(F3,25,F4*(-1)) -> 51.22043842 | G5: =F5 -> 51.22043842 | H5: 51.22043842 | I5: 51.22043842 | J5: 51.22043842 | K5: 51.22043842 | L5: 51.22043842 | M5: 51.22043842 | N5: 51.22043842 | O5: 51.22043842 | P5: 51.22043842 | Q5: 51.22043842 | R5: 51.22043842 | S5: 51.22043842 | T5: 51.22043842 | U5: 51.22043842 | V5: 51.22043842 | W5: 51.22043842 | X5: 51.22043842 | Y5: 51.22043842 | Z5: 51.22043842 | AA5: 51.22043842 | AB5: 51.22043842 | AC5: 51.22043842 | AD5: 51.22043842
D6: IRR | E6: =IRR(5:5) -> 0.02
C8: Opening Balance | F8: =E10 -> 1000 | G8: 968.7795616 | H8: 936.9347144 | I8: 904.4529703 | J8: 871.3215913 | K8: 837.5275847 | L8: 803.0576979 | M8: 767.8984135 | N8: 732.0359433 | O8: 695.4562238 | P8: 658.1449098 | Q8: 620.0873696 | R8: 581.2686786 | S8: 541.6736137 | T8: 501.2866476 | U8: 460.0919421 | V8: 418.0733426 | W8: 375.214371 | X8: 331.49822 | Y8: 286.907746 | Z8: 241.4254625 | AA8: 195.0335333 | AB8: 147.7137656 | AC8: 99.44760246 | AD8: 50.2161161
C9: Repaiment | F9: =F5-F11 -> 31.22043842 | G9: 31.84484719 | H9: 32.48174413 | I9: 33.13137901 | J9: 33.79400659 | K9: 34.46988672 | L9: 35.15928446 | M9: 35.86247015 | N9: 36.57971955 | O9: 37.31131394 | P9: 38.05754022 | Q9: 38.81869103 | R9: 39.59506485 | S9: 40.38696614 | T9: 41.19470547 | U9: 42.01859957 | V9: 42.85897157 | W9: 43.716151 | X9: 44.59047402 | Y9: 45.4822835 | Z9: 46.39192917 | AA9: 47.31976775 | AB9: 48.26616311 | AC9: 49.23148637 | AD9: 50.2161161
C10: Closing balance | E10: =F4 -> 1000 | F10: =F8-F9 -> 968.7795616 | G10: 936.9347144 | H10: 904.4529703 | I10: 871.3215913 | J10: 837.5275847 | K10: 803.0576979 | L10: 767.8984135 | M10: 732.0359433 | N10: 695.4562238 | O10: 658.1449098 | P10: 620.0873696 | Q10: 581.2686786 | R10: 541.6736137 | S10: 501.2866476 | T10: 460.0919421 | U10: 418.0733426 | V10: 375.214371 | W10: 331.49822 | X10: 286.907746 | Y10: 241.4254625 | Z10: 195.0335333 | AA10: 147.7137656 | AB10: 99.44760246 | AC10: 50.2161161 | AD10: -1.492139745e-13
C11: Interest | F11: =+F8*$F$3 -> 20 | G11: 19.37559123 | H11: 18.73869429 | I11: 18.08905941 | J11: 17.42643183 | K11: 16.75055169 | L11: 16.06115396 | M11: 15.35796827 | N11: 14.64071887 | O11: 13.90912448 | P11: 13.1628982 | Q11: 12.40174739 | R11: 11.62537357 | S11: 10.83347227 | T11: 10.02573295 | U11: 9.201838843 | V11: 8.361466851 | W11: 7.50428742 | X11: 6.6299644 | Y11: 5.73815492 | Z11: 4.82850925 | AA11: 3.900670666 | AB11: 2.954275311 | AC11: 1.988952049 | AD11: 1.004322322
C13: Africa Loan Interest rate | F13: 0.07
C14: Loan Amount | F14: 1000
C15: Total Repayment | F15: =PMT(F13,25,-F14) -> 85.81051722 | G15: =F15 -> 85.81051722 | H15: 85.81051722 | I15: 85.81051722 | J15: 85.81051722 | K15: 85.81051722 | L15: 85.81051722 | M15: 85.81051722 | N15: 85.81051722 | O15: 85.81051722 | P15: 85.81051722 | Q15: 85.81051722 | R15: 85.81051722 | S15: 85.81051722 | T15: 85.81051722 | U15: 85.81051722 | V15: 85.81051722 | W15: 85.81051722 | X15: 85.81051722 | Y15: 85.81051722 | Z15: 85.81051722 | AA15: 85.81051722 | AB15: 85.81051722 | AC15: 85.81051722 | AD15: 85.81051722
C17: Probability of Default | E17: 0.7866068784
C18: Loss Given Default | E18: 0.6
C19: Recovery Rate | E19: =1-E18 -> 0.4
C21: Realized Payment
C22: No default Scenario | E22: =1-E17 -> 0.2133931216 | F22: =F15*$E$22 -> 18.31137413 | G22: 18.31137413 | H22: 18.31137413 | I22: 18.31137413 | J22: 18.31137413 | K22: 18.31137413 | L22: 18.31137413 | M22: 18.31137413 | N22: 18.31137413 | O22: 18.31137413 | P22: 18.31137413 | Q22: 18.31137413 | R22: 18.31137413 | S22: 18.31137413 | T22: 18.31137413 | U22: 18.31137413 | V22: 18.31137413 | W22: 18.31137413 | X22: 18.31137413 | Y22: 18.31137413 | Z22: 18.31137413 | AA22: 18.31137413 | AB22: 18.31137413 | AC22: 18.31137413 | AD22: 18.31137413
C23: Default Scenario | E23: =E17 -> 0.7866068784 | F23: =F15*$E$23 -> 67.49914309 | G23: =G15*$E$23 -> 67.49914309 | H23: =H15*$E$23 -> 67.49914309 | I23: =I15*$E$19*$E$23 -> 26.99965723 | J23: 26.99965723 | K23: 26.99965723 | L23: 26.99965723 | M23: 26.99965723 | N23: 26.99965723 | O23: 26.99965723 | P23: 26.99965723 | Q23: 26.99965723 | R23: 26.99965723 | S23: 26.99965723 | T23: 26.99965723 | U23: 26.99965723 | V23: 26.99965723 | W23: 26.99965723 | X23: 26.99965723 | Y23: 26.99965723 | Z23: 26.99965723 | AA23: 26.99965723 | AB23: 26.99965723 | AC23: 26.99965723 | AD23: 26.99965723
E24: =-F14 -> -1000 | F24: =SUM(F22:F23) -> 85.81051722 | G24: 85.81051722 | H24: 85.81051722 | I24: 45.31103137 | J24: 45.31103137 | K24: 45.31103137 | L24: 45.31103137 | M24: 45.31103137 | N24: 45.31103137 | O24: 45.31103137 | P24: 45.31103137 | Q24: 45.31103137 | R24: 45.31103137 | S24: 45.31103137 | T24: 45.31103137 | U24: 45.31103137 | V24: 45.31103137 | W24: 45.31103137 | X24: 45.31103137 | Y24: 45.31103137 | Z24: 45.31103137 | AA24: 45.31103137 | AB24: 45.31103137 | AC24: 45.31103137 | AD24: 45.31103137
D25: =IRR(24:24) -> 0.02013430371
D26: =D25-E6 -> 0.0001343037133

Sheet Sheet3 (2)
A1: in US SPP
A2: SPP Project Cost | B2: 17556920
A3: GCF Loan | B3: 8650050 | C3: =B3/B6 -> 0.4692248331
A4: GCF Grant | B4: 877846
A5: GCF Total | B5: 9527896
A6: Total Financing Amount | B6: 18434766
